BODY,BODY NAME,DATE,TRANSACTION NUMBER,THEIR REF,CATEGORY,AMOUNT,SUPPLIER NAME,SUPPLIER CODE,EXPENSE AREA,EXPENSE TYPE,EXPENSE CODE
http://statistics.data.gov.uk/id/local-authority/12UE,Huntingdonshire District Council,13/07/2016,191339,7167,5,108,Air Monitors Ltd,CR480691,Air Quality,Equipment Maintenance,511
http://statistics.data.gov.uk/id/local-authority/12UE,Huntingdonshire District Council,13/07/2016,191339,7167,5,156,Air Monitors Ltd,CR480691,Air Quality,Equipment Maintenance,511
http://statistics.data.gov.uk/id/local-authority/12UE,Huntingdonshire District Council,13/07/2016,191339,7167,5,156,Air Monitors Ltd,CR480691,Air Quality,Equipment Maintenance,511
http://statistics.data.gov.uk/id/local-authority/12UE,Huntingdonshire District Council,21/07/2016,192966,1321,5,"1,500.00",Wood Green Animal Shelters,CR019139,Animal Welfare,Contribution (Paid Out),810
http://statistics.data.gov.uk/id/local-authority/12UE,Huntingdonshire District Council,21/07/2016,192967,1322,5,"1,500.00",Wood Green Animal Shelters,CR019139,Animal Welfare,Contribution (Paid Out),810
http://statistics.data.gov.uk/id/local-authority/12UE,Huntingdonshire District Council,21/07/2016,192968,1323,5,"1,500.00",Wood Green Animal Shelters,CR019139,Animal Welfare,Contribution (Paid Out),810
http://statistics.data.gov.uk/id/local-authority/12UE,Huntingdonshire District Council,21/07/2016,192960,1324,5,"1,700.00",Wood Green Animal Shelters,CR019139,Animal Welfare,Contribution (Paid Out),810
http://statistics.data.gov.uk/id/local-authority/12UE,Huntingdonshire District Council,21/07/2016,192961,1325,5,"1,700.00",Wood Green Animal Shelters,CR019139,Animal Welfare,Contribution (Paid Out),810
http://statistics.data.gov.uk/id/local-authority/12UE,Huntingdonshire District Council,21/07/2016,192962,1326,5,"1,700.00",Wood Green Animal Shelters,CR019139,Animal Welfare,Contribution (Paid Out),810
http://statistics.data.gov.uk/id/local-authority/12UE,Huntingdonshire District Council,21/07/2016,192969,1337,5,"1,500.00",Wood Green Animal Shelters,CR019139,Animal Welfare,Contribution (Paid Out),810
http://statistics.data.gov.uk/id/local-authority/12UE,Huntingdonshire District Council,21/07/2016,192970,1338,5,"1,500.00",Wood Green Animal Shelters,CR019139,Animal Welfare,Contribution (Paid Out),810
http://statistics.data.gov.uk/id/local-authority/12UE,Huntingdonshire District Council,21/07/2016,192971,1339,5,"1,500.00",Wood Green Animal Shelters,CR019139,Animal Welfare,Contribution (Paid Out),810
http://statistics.data.gov.uk/id/local-authority/12UE,Huntingdonshire District Council,21/07/2016,192963,1340,5,"1,700.00",Wood Green Animal Shelters,CR019139,Animal Welfare,Contribution (Paid Out),810
http://statistics.data.gov.uk/id/local-authority/12UE,Huntingdonshire District Council,21/07/2016,192964,1341,5,"1,700.00",Wood Green Animal Shelters,CR019139,Animal Welfare,Contribution (Paid Out),810
http://statistics.data.gov.uk/id/local-authority/12UE,Huntingdonshire District Council,21/07/2016,192965,1342,5,"1,700.00",Wood Green Animal Shelters,CR019139,Animal Welfare,Contribution (Paid Out),810
http://statistics.data.gov.uk/id/local-authority/12UE,Huntingdonshire District Council,28/07/2016,192972,1-14200,5,396,Pengelly And Mizen,CR411042,Animal Welfare,Vets,760
http://statistics.data.gov.uk/id/local-authority/12UE,Huntingdonshire District Council,28/07/2016,192106,GFL1790HDC,5,606,G Ferrara Ltd,CR478949,Bus Shelters,Building Cleaning,440
http://statistics.data.gov.uk/id/local-authority/12UE,Huntingdonshire District Council,12/07/2016,192085,011458902300//,5,313.95,E-On Energy,CR416430,Bus Shelters,Electricity,420
http://statistics.data.gov.uk/id/local-authority/12UE,Huntingdonshire District Council,28/07/2016,193250,104102272,5,496.3,Anglian Water,CR000071,Bus Stations,Water & Sewerage,432
http://statistics.data.gov.uk/id/local-authority/12UE,Huntingdonshire District Council,13/07/2016,191961,16061086,5,852,Novus Property Solutions Ltd,CR422522,Call Centre,Building Mtce,303
http://statistics.data.gov.uk/id/local-authority/12UE,Huntingdonshire District Council,13/07/2016,191743,11825,5,"1,949.16",Playfords Ltd,CR479055,Call Centre,Building Mtce,303
http://statistics.data.gov.uk/id/local-authority/12UE,Huntingdonshire District Council,12/07/2016,192090,11398240710,5,"1,052.84",E-On Energy,CR416430,Cctv Shared Service,Electricity,420
http://statistics.data.gov.uk/id/local-authority/12UE,Huntingdonshire District Council,13/07/2016,191390,4219,5,547.2,Access Hire And Hydraulics,CR422526,Cctv Shared Service,Equipment Maintenance,511
http://statistics.data.gov.uk/id/local-authority/12UE,Huntingdonshire District Council,13/07/2016,192043,4231,5,684,Access Hire And Hydraulics,CR422526,Cctv Shared Service,Equipment Maintenance,511
http://statistics.data.gov.uk/id/local-authority/12UE,Huntingdonshire District Council,13/07/2016,191630,54070,5,780,Melsecure International,CR422888,Cctv Shared Service,Equipment Maintenance,511
http://statistics.data.gov.uk/id/local-authority/12UE,Huntingdonshire District Council,13/07/2016,192056,54076,5,780,Melsecure International,CR422888,Cctv Shared Service,Equipment Maintenance,511
http://statistics.data.gov.uk/id/local-authority/12UE,Huntingdonshire District Council,28/07/2016,192311,242160-114,5,"2,414.16",Virgin Media,CR412057,Cctv Shared Service,Equipment Maintenance,511
http://statistics.data.gov.uk/id/local-authority/12UE,Huntingdonshire District Council,18/07/2016,192616,1238217490,5,60,Orange Airtime,CR455799,Cctv Shared Service,Telephone &Mobile Phonecharges,240
http://statistics.data.gov.uk/id/local-authority/12UE,Huntingdonshire District Council,28/07/2016,192919,20023438,5,"94,382.06",Bt Redcare,CR410623,Cctv Shared Service,Transmission Lines Rental,767
http://statistics.data.gov.uk/id/local-authority/12UE,Huntingdonshire District Council,28/07/2016,192334,189792,5,"63,552.00",Cambridge City Council,CR017896,Central Services M Us,Client Contracts,779
http://statistics.data.gov.uk/id/local-authority/12UE,Huntingdonshire District Council,18/07/2016,192616,1238217490,5,12,Orange Airtime,CR455799,Central Services M Us,Telephone &Mobile Phonecharges,240
http://statistics.data.gov.uk/id/local-authority/12UE,Huntingdonshire District Council,21/07/2016,192706,1354539718,5,"8,258.40",Pricewaterhouse Coopers Llp,CR487210,Chief Executive & Comt,Audit Fees,701
http://statistics.data.gov.uk/id/local-authority/12UE,Huntingdonshire District Council,13/07/2016,191292,01/16/HDC015,5,"12,144.00",Hester Management Services Ltd,CR422903,Chief Executive & Comt,Consultants,711
http://statistics.data.gov.uk/id/local-authority/12UE,Huntingdonshire District Council,01/07/2016,191710,103844,5,"3,480.00",Lavat,CR480410,Chief Executive & Comt,Consultants,711
http://statistics.data.gov.uk/id/local-authority/12UE,Huntingdonshire District Council,13/07/2016,190375,SNC1617-087,6,396,District Councils Network,CR455107,Chief Executive & Comt,Corporate Subscriptions,754
http://statistics.data.gov.uk/id/local-authority/12UE,Huntingdonshire District Council,21/07/2016,192708,23826,5,"-25,047.60",Cambridge City Council,CR017896,Chief Executive & Comt,Other Services,799
http://statistics.data.gov.uk/id/local-authority/12UE,Huntingdonshire District Council,21/07/2016,192709,189309,5,"52,726.80",Cambridge City Council,CR017896,Chief Executive & Comt,Other Services,799
http://statistics.data.gov.uk/id/local-authority/12UE,Huntingdonshire District Council,12/07/2016,191780,101577,5,"7,200.00",Northern Design Collective,CR455624,Chief Executive & Comt,Recruitment Costs,120
http://statistics.data.gov.uk/id/local-authority/12UE,Huntingdonshire District Council,13/07/2016,152330,PRS1415036,5,800,Sts Leisure Group,CR415607,Community Services M Us,Training - Operational,131
http://statistics.data.gov.uk/id/local-authority/12UE,Huntingdonshire District Council,13/07/2016,152498,PRS1415036,5,-800,Sts Leisure Group,CR415607,Community Services M Us,Training - Operational,131
http://statistics.data.gov.uk/id/local-authority/12UE,Huntingdonshire District Council,27/07/2016,192731,757,5,"2,060.13",Hact,CR455657,Concessionary Fares,Contribution (Paid Out),810
http://statistics.data.gov.uk/id/local-authority/12UE,Huntingdonshire District Council,07/07/2016,192138,639370,5,300,Landmark Information Group Ltd,CR40060,Contaminated Land,Software,206
http://statistics.data.gov.uk/id/local-authority/12UE,Huntingdonshire District Council,13/07/2016,190620,B 090516/310516,5,"2,695.50",Jacobs,CR422350,Council Tax,Bailiffs,703
http://statistics.data.gov.uk/id/local-authority/12UE,Huntingdonshire District Council,13/07/2016,192129,B-06062016,5,"3,163.50",Jacobs,CR422350,Council Tax,Bailiffs,703
http://statistics.data.gov.uk/id/local-authority/12UE,Huntingdonshire District Council,12/07/2016,191671,3059,5,"3,803.01",Newlyn Plc,CR409114,Council Tax,Bailiffs,703
http://statistics.data.gov.uk/id/local-authority/12UE,Huntingdonshire District Council,13/07/2016,190526,661512,5,789.6,Callcredit Ltd,CR455548,Council Tax,Enquiries,723
http://statistics.data.gov.uk/id/local-authority/12UE,Huntingdonshire District Council,13/07/2016,192165,665106,5,342,Callcredit Ltd,CR455548,Council Tax,Enquiries,723
http://statistics.data.gov.uk/id/local-authority/12UE,Huntingdonshire District Council,13/07/2016,191618,9052386318,5,"1,055.85",Royal Mail,CR027083,Council Tax,Postage,231
http://statistics.data.gov.uk/id/local-authority/12UE,Huntingdonshire District Council,12/07/2016,190890,IN16PS16003194,5,567.23,Whistl Uk Ltd,CR479965,Council Tax,Postage,231
http://statistics.data.gov.uk/id/local-authority/12UE,Huntingdonshire District Council,12/07/2016,190889,IN16PS16003195,5,"1,039.21",Whistl Uk Ltd,CR479965,Council Tax,Postage,231
http://statistics.data.gov.uk/id/local-authority/12UE,Huntingdonshire District Council,12/07/2016,191396,IN16PS16003499,5,408.92,Whistl Uk Ltd,CR479965,Council Tax,Postage,231
http://statistics.data.gov.uk/id/local-authority/12UE,Huntingdonshire District Council,14/07/2016,192600,INV549261,5,482.99,Ecocleen Services Limited,CR406985,Countryside,Building Cleaning,440
http://statistics.data.gov.uk/id/local-authority/12UE,Huntingdonshire District Council,12/07/2016,190685,14157,5,33.48,Jade Security Services Ltd,CR422256,Countryside,Cash Collection,702
http://statistics.data.gov.uk/id/local-authority/12UE,Huntingdonshire District Council,27/07/2016,192805,14304,5,16.74,Jade Security Services Ltd,CR422256,Countryside,Cash Collection,702
http://statistics.data.gov.uk/id/local-authority/12UE,Huntingdonshire District Council,21/07/2016,192637,704272310,5,514.55,Booker Cash And Carry,CR027611,Countryside,Catering Materials,559
http://statistics.data.gov.uk/id/local-authority/12UE,Huntingdonshire District Council,07/07/2016,191151,866064,5,331.99,King Bros,CR411339,Countryside,Catering Materials,559
http://statistics.data.gov.uk/id/local-authority/12UE,Huntingdonshire District Council,12/07/2016,191648,867056,5,456.59,King Bros,CR411339,Countryside,Catering Materials,559
http://statistics.data.gov.uk/id/local-authority/12UE,Huntingdonshire District Council,25/07/2016,192911,868791,5,338.27,King Bros,CR411339,Countryside,Catering Materials,559
http://statistics.data.gov.uk/id/local-authority/12UE,Huntingdonshire District Council,11/07/2016,191156,632505,5,339.01,Pilgrim Foodservice Ltd,CR455695,Countryside,Catering Materials,559
http://statistics.data.gov.uk/id/local-authority/12UE,Huntingdonshire District Council,14/07/2016,192078,22384,5,616.97,B. S. Graves Electrical Ltd,CR000363,Countryside,Electricity,420
http://statistics.data.gov.uk/id/local-authority/12UE,Huntingdonshire District Council,21/07/2016,192873,641403266,5,277.85,Swalec,CR407130,Countryside,Electricity,420
http://statistics.data.gov.uk/id/local-authority/12UE,Huntingdonshire District Council,21/07/2016,192872,941403268,5,800.65,Swalec,CR407130,Countryside,Electricity,420
http://statistics.data.gov.uk/id/local-authority/12UE,Huntingdonshire District Council,21/07/2016,192639,SI/03013184,5,366,Nomix Enviro,CR002353,Countryside,Equipment,500
http://statistics.data.gov.uk/id/local-authority/12UE,Huntingdonshire District Council,13/07/2016,192155,8320,5,861.46,Clenaway Systems Ltd,CR423427,Countryside,Equipment Maintenance,511
http://statistics.data.gov.uk/id/local-authority/12UE,Huntingdonshire District Council,21/07/2016,192637,704272310,5,6.57,Booker Cash And Carry,CR027611,Countryside,Materials,550
http://statistics.data.gov.uk/id/local-authority/12UE,Huntingdonshire District Council,14/07/2016,192339,812408,5,288.73,Mick George (Haulage) Ltd,CR092478,Countryside,Materials,550
http://statistics.data.gov.uk/id/local-authority/12UE,Huntingdonshire District Council,14/07/2016,192340,812722,5,279.65,Mick George (Haulage) Ltd,CR092478,Countryside,Materials,550
http://statistics.data.gov.uk/id/local-authority/12UE,Huntingdonshire District Council,28/07/2016,193251,113415079,5,288.83,Anglian Water,CR000071,Countryside,Water & Sewerage,432
http://statistics.data.gov.uk/id/local-authority/12UE,Huntingdonshire District Council,07/07/2016,190996,12342,5,601.62,Lightning Recruitment,CR028184,Customer Service Centres,Hired Staff,100
http://statistics.data.gov.uk/id/local-authority/12UE,Huntingdonshire District Council,07/07/2016,190999,12344,5,414.22,Lightning Recruitment,CR028184,Customer Service Centres,Hired Staff,100
http://statistics.data.gov.uk/id/local-authority/12UE,Huntingdonshire District Council,12/07/2016,191611,12379,5,487.8,Lightning Recruitment,CR028184,Customer Service Centres,Hired Staff,100
http://statistics.data.gov.uk/id/local-authority/12UE,Huntingdonshire District Council,12/07/2016,191610,12381,5,414.22,Lightning Recruitment,CR028184,Customer Service Centres,Hired Staff,100
http://statistics.data.gov.uk/id/local-authority/12UE,Huntingdonshire District Council,12/07/2016,191741,12412,5,585.36,Lightning Recruitment,CR028184,Customer Service Centres,Hired Staff,100
http://statistics.data.gov.uk/id/local-authority/12UE,Huntingdonshire District Council,28/07/2016,192421,12448,5,455.28,Lightning Recruitment,CR028184,Customer Service Centres,Hired Staff,100
http://statistics.data.gov.uk/id/local-authority/12UE,Huntingdonshire District Council,13/07/2016,191179,82557431,5,283.46,Archant Community Media Ltd,CR452143,Dc Application Processing,Advertising - Statutory Notice,257
http://statistics.data.gov.uk/id/local-authority/12UE,Huntingdonshire District Council,13/07/2016,191934,825637514,5,256.03,Archant Community Media Ltd,CR452143,Dc Application Processing,Advertising - Statutory Notice,257
http://statistics.data.gov.uk/id/local-authority/12UE,Huntingdonshire District Council,13/07/2016,190511,F0001247,5,600,Carter Jonas,CR455383,Dc Application Processing,Consultants,711
http://statistics.data.gov.uk/id/local-authority/12UE,Huntingdonshire District Council,12/07/2016,191956,7223/16/393/PA,5,900,Reading Agricultural Consultants,CR404991,Dc Application Processing,Consultants,711
http://statistics.data.gov.uk/id/local-authority/12UE,Huntingdonshire District Council,12/07/2016,191960,7328/16/394/PA,5,900,Reading Agricultural Consultants,CR404991,Dc Application Processing,Consultants,711
http://statistics.data.gov.uk/id/local-authority/12UE,Huntingdonshire District Council,28/07/2016,181674,MC18505133,5,-775.68,Eclipse,CR417066,Development Team,Software,206
http://statistics.data.gov.uk/id/local-authority/12UE,Huntingdonshire District Council,28/07/2016,193201,PO 28058,5,775.68,Eclipse,CR417066,Development Team,Software,206
http://statistics.data.gov.uk/id/local-authority/12UE,Huntingdonshire District Council,27/07/2016,192594,8934,5,251.4,West Country Group,CR400581,Document Centre,Envelopes,224
http://statistics.data.gov.uk/id/local-authority/12UE,Huntingdonshire District Council,27/07/2016,192425,8983,5,"1,101.60",West Country Group,CR400581,Document Centre,Envelopes,224
http://statistics.data.gov.uk/id/local-authority/12UE,Huntingdonshire District Council,25/07/2016,192815,SINV00329868,5,345.36,Amalgamated Computer Supplies,CR480830,Document Centre,Equipment,500
http://statistics.data.gov.uk/id/local-authority/12UE,Huntingdonshire District Council,28/07/2016,192728,9136278,5,"1,881.00",Canon Uk Ltd,CR409013,Document Centre,Equipment Maintenance,511
http://statistics.data.gov.uk/id/local-authority/12UE,Huntingdonshire District Council,13/07/2016,191422,1124990833,5,"2,573.93",Konica Minolta,CR478866,Document Centre,Equipment Maintenance,511
http://statistics.data.gov.uk/id/local-authority/12UE,Huntingdonshire District Council,13/07/2016,190524,117279,5,960,Twofold Consulting,CR453929,Document Centre,Equipment Maintenance,511
http://statistics.data.gov.uk/id/local-authority/12UE,Huntingdonshire District Council,14/07/2016,192583,Jun-11,5,184.8,Fingerprint,CR001165,Document Centre,Materials,550
http://statistics.data.gov.uk/id/local-authority/12UE,Huntingdonshire District Council,14/07/2016,192583,Jun-11,5,148.68,Fingerprint,CR001165,Document Centre,Materials,550
http://statistics.data.gov.uk/id/local-authority/12UE,Huntingdonshire District Council,07/07/2016,191054,5909045,5,98.09,Antalis Ltd,CR479468,Document Centre,Paper,562
http://statistics.data.gov.uk/id/local-authority/12UE,Huntingdonshire District Council,07/07/2016,191054,5909045,5,102.6,Antalis Ltd,CR479468,Document Centre,Paper,562
http://statistics.data.gov.uk/id/local-authority/12UE,Huntingdonshire District Council,07/07/2016,191054,5909045,5,81,Antalis Ltd,CR479468,Document Centre,Paper,562
http://statistics.data.gov.uk/id/local-authority/12UE,Huntingdonshire District Council,07/07/2016,191054,5909045,5,34.44,Antalis Ltd,CR479468,Document Centre,Paper,562
http://statistics.data.gov.uk/id/local-authority/12UE,Huntingdonshire District Council,07/07/2016,191402,5917132,5,57.96,Antalis Ltd,CR479468,Document Centre,Paper,562
http://statistics.data.gov.uk/id/local-authority/12UE,Huntingdonshire District Council,07/07/2016,191402,5917132,5,278.4,Antalis Ltd,CR479468,Document Centre,Paper,562
http://statistics.data.gov.uk/id/local-authority/12UE,Huntingdonshire District Council,13/07/2016,191626,5940285,5,427.81,Antalis Ltd,CR479468,Document Centre,Paper,562
http://statistics.data.gov.uk/id/local-authority/12UE,Huntingdonshire District Council,13/07/2016,191627,5947896,5,144.9,Antalis Ltd,CR479468,Document Centre,Paper,562
http://statistics.data.gov.uk/id/local-authority/12UE,Huntingdonshire District Council,13/07/2016,191627,5947896,5,556.8,Antalis Ltd,CR479468,Document Centre,Paper,562
http://statistics.data.gov.uk/id/local-authority/12UE,Huntingdonshire District Council,13/07/2016,191627,5947896,5,101.08,Antalis Ltd,CR479468,Document Centre,Paper,562
http://statistics.data.gov.uk/id/local-authority/12UE,Huntingdonshire District Council,13/07/2016,191627,5947896,5,88.84,Antalis Ltd,CR479468,Document Centre,Paper,562
http://statistics.data.gov.uk/id/local-authority/12UE,Huntingdonshire District Council,21/07/2016,192590,5963098,5,278.4,Antalis Ltd,CR479468,Document Centre,Paper,562
http://statistics.data.gov.uk/id/local-authority/12UE,Huntingdonshire District Council,21/07/2016,192596,5975089,5,138.89,Antalis Ltd,CR479468,Document Centre,Paper,562
http://statistics.data.gov.uk/id/local-authority/12UE,Huntingdonshire District Council,21/07/2016,192596,5975089,5,40.96,Antalis Ltd,CR479468,Document Centre,Paper,562
http://statistics.data.gov.uk/id/local-authority/12UE,Huntingdonshire District Council,21/07/2016,192596,5975089,5,104.87,Antalis Ltd,CR479468,Document Centre,Paper,562
http://statistics.data.gov.uk/id/local-authority/12UE,Huntingdonshire District Council,21/07/2016,192596,5975089,5,105.97,Antalis Ltd,CR479468,Document Centre,Paper,562
http://statistics.data.gov.uk/id/local-authority/12UE,Huntingdonshire District Council,21/07/2016,192596,5975089,5,32.16,Antalis Ltd,CR479468,Document Centre,Paper,562
http://statistics.data.gov.uk/id/local-authority/12UE,Huntingdonshire District Council,14/07/2016,192583,Jun-11,5,43.01,Fingerprint,CR001165,Document Centre,Paper,562
http://statistics.data.gov.uk/id/local-authority/12UE,Huntingdonshire District Council,13/07/2016,191626,5940285,5,129.61,Antalis Ltd,CR479468,Document Centre,Postage,231
http://statistics.data.gov.uk/id/local-authority/12UE,Huntingdonshire District Council,13/07/2016,191618,9052386318,5,"1,061.95",Royal Mail,CR027083,Document Centre,Postage,231
http://statistics.data.gov.uk/id/local-authority/12UE,Huntingdonshire District Council,13/07/2016,191620,9052396403,5,"1,125.58",Royal Mail,CR027083,Document Centre,Postage,231
http://statistics.data.gov.uk/id/local-authority/12UE,Huntingdonshire District Council,13/07/2016,191621,9052399743,5,"1,852.03",Royal Mail,CR027083,Document Centre,Postage,231
http://statistics.data.gov.uk/id/local-authority/12UE,Huntingdonshire District Council,13/07/2016,191835,9052434983,5,563.56,Royal Mail,CR027083,Document Centre,Postage,231
http://statistics.data.gov.uk/id/local-authority/12UE,Huntingdonshire District Council,12/07/2016,190890,IN16PS16003194,5,954.89,Whistl Uk Ltd,CR479965,Document Centre,Postage,231
http://statistics.data.gov.uk/id/local-authority/12UE,Huntingdonshire District Council,12/07/2016,190889,IN16PS16003195,5,118.25,Whistl Uk Ltd,CR479965,Document Centre,Postage,231
http://statistics.data.gov.uk/id/local-authority/12UE,Huntingdonshire District Council,12/07/2016,191396,IN16PS16003499,5,872.98,Whistl Uk Ltd,CR479965,Document Centre,Postage,231
http://statistics.data.gov.uk/id/local-authority/12UE,Huntingdonshire District Council,12/07/2016,191395,IN16PS16003501,5,"1,188.33",Whistl Uk Ltd,CR479965,Document Centre,Postage,231
http://statistics.data.gov.uk/id/local-authority/12UE,Huntingdonshire District Council,28/07/2016,192027,77034,5,"1,020.00",Gladstone Mrm,CR405717,Domestic Refuse,Consultants,711
http://statistics.data.gov.uk/id/local-authority/12UE,Huntingdonshire District Council,28/07/2016,192767,2044,5,"2,686.87",Change Agents Uk Trading Ltd,CR477664,Domestic Refuse,Hired Staff,100
http://statistics.data.gov.uk/id/local-authority/12UE,Huntingdonshire District Council,07/07/2016,191426,IN0522941,5,"7,192.73",Staffline Group,CR416827,Domestic Refuse,Hired Staff,100
http://statistics.data.gov.uk/id/local-authority/12UE,Huntingdonshire District Council,07/07/2016,191421,IN0522942,5,"1,905.59",Staffline Group,CR416827,Domestic Refuse,Hired Staff,100
http://statistics.data.gov.uk/id/local-authority/12UE,Huntingdonshire District Council,14/07/2016,192444,IN0524688,5,"6,558.97",Staffline Group,CR416827,Domestic Refuse,Hired Staff,100
http://statistics.data.gov.uk/id/local-authority/12UE,Huntingdonshire District Council,14/07/2016,192442,IN0524689,5,"2,598.26",Staffline Group,CR416827,Domestic Refuse,Hired Staff,100
http://statistics.data.gov.uk/id/local-authority/12UE,Huntingdonshire District Council,13/07/2016,191400,9608,5,"1,232.64",G&C Coachworks Ltd,CR455755,Domestic Refuse,Insurance Excess,797
http://statistics.data.gov.uk/id/local-authority/12UE,Huntingdonshire District Council,13/07/2016,191416,347319,5,547.96,Smi Group,CR423139,Domestic Refuse,Protective Clothing & Uniforms,163
http://statistics.data.gov.uk/id/local-authority/12UE,Huntingdonshire District Council,13/07/2016,190558,348675,5,284.34,Smi Group,CR423139,Domestic Refuse,Protective Clothing & Uniforms,163
http://statistics.data.gov.uk/id/local-authority/12UE,Huntingdonshire District Council,13/07/2016,191033,350002,5,"1,043.09",Smi Group,CR423139,Domestic Refuse,Protective Clothing & Uniforms,163
http://statistics.data.gov.uk/id/local-authority/12UE,Huntingdonshire District Council,13/07/2016,191415,351498,5,330.48,Smi Group,CR423139,Domestic Refuse,Protective Clothing & Uniforms,163
http://statistics.data.gov.uk/id/local-authority/12UE,Huntingdonshire District Council,21/07/2016,192796,89287,5,"3,451.99",Bandvulc Truck Tyres,CR406810,Domestic Refuse,Tyres,630
http://statistics.data.gov.uk/id/local-authority/12UE,Huntingdonshire District Council,27/07/2016,192797,90398,5,"1,386.82",Bandvulc Truck Tyres,CR406810,Domestic Refuse,Tyres,630
http://statistics.data.gov.uk/id/local-authority/12UE,Huntingdonshire District Council,14/07/2016,192289,99463,5,276,Huntingdon Plant Hire,CR000425,Domestic Refuse,Vehicle Cleaning,620
http://statistics.data.gov.uk/id/local-authority/12UE,Huntingdonshire District Council,27/07/2016,192771,99721,5,312,Huntingdon Plant Hire,CR000425,Domestic Refuse,Vehicle Cleaning,620
http://statistics.data.gov.uk/id/local-authority/12UE,Huntingdonshire District Council,27/07/2016,192770,99858,5,276,Huntingdon Plant Hire,CR000425,Domestic Refuse,Vehicle Cleaning,620
http://statistics.data.gov.uk/id/local-authority/12UE,Huntingdonshire District Council,28/07/2016,193196,24437,5,120,M & N Vehicle Services,CR480661,Domestic Refuse,Vehicle Cleaning,620
http://statistics.data.gov.uk/id/local-authority/12UE,Huntingdonshire District Council,07/07/2016,192093,1605/04310,5,811.2,Gullivers Truck Hire Ltd,CR477663,Domestic Refuse,Vehicle Hire,607
http://statistics.data.gov.uk/id/local-authority/12UE,Huntingdonshire District Council,13/07/2016,191693,1606/22311,5,403.2,Gullivers Truck Hire Ltd,CR477663,Domestic Refuse,Vehicle Hire,607
http://statistics.data.gov.uk/id/local-authority/12UE,Huntingdonshire District Council,13/07/2016,192092,1606/23932,5,408,Gullivers Truck Hire Ltd,CR477663,Domestic Refuse,Vehicle Hire,607
http://statistics.data.gov.uk/id/local-authority/12UE,Huntingdonshire District Council,25/07/2016,192804,1606/29095,5,408,Gullivers Truck Hire Ltd,CR477663,Domestic Refuse,Vehicle Hire,607
http://statistics.data.gov.uk/id/local-authority/12UE,Huntingdonshire District Council,14/07/2016,192290,99620,5,420,Huntingdon Plant Hire,CR000425,Domestic Refuse,Vehicle Hire,607
http://statistics.data.gov.uk/id/local-authority/12UE,Huntingdonshire District Council,28/07/2016,193194,24675,5,132,M & N Vehicle Services,CR480661,Domestic Refuse,Vehicle Mot,622
http://statistics.data.gov.uk/id/local-authority/12UE,Huntingdonshire District Council,07/07/2016,191662,266197I,5,125.99,A C Commercials,CR000141,Domestic Refuse,Vehicle Oil & Lubricants,626
http://statistics.data.gov.uk/id/local-authority/12UE,Huntingdonshire District Council,21/07/2016,192781,266488I,5,394.2,A C Commercials,CR000141,Domestic Refuse,Vehicle Oil & Lubricants,626
http://statistics.data.gov.uk/id/local-authority/12UE,Huntingdonshire District Council,12/07/2016,192117,187488,5,294,Barton Petroleum,CR409205,Domestic Refuse,Vehicle Oil & Lubricants,626
http://statistics.data.gov.uk/id/local-authority/12UE,Huntingdonshire District Council,07/07/2016,191657,266260I,5,413.6,A C Commercials,CR000141,Domestic Refuse,Vehicle Parts & Fittings,625
http://statistics.data.gov.uk/id/local-authority/12UE,Huntingdonshire District Council,07/07/2016,191666,DE10957671,5,719.38,Dennis Eagle Ltd,CR000200,Domestic Refuse,Vehicle Parts & Fittings,625
http://statistics.data.gov.uk/id/local-authority/12UE,Huntingdonshire District Council,07/07/2016,191664,DE10957672,5,413.04,Dennis Eagle Ltd,CR000200,Domestic Refuse,Vehicle Parts & Fittings,625
http://statistics.data.gov.uk/id/local-authority/12UE,Huntingdonshire District Council,07/07/2016,191665,DE10957673,5,464.77,Dennis Eagle Ltd,CR000200,Domestic Refuse,Vehicle Parts & Fittings,625
http://statistics.data.gov.uk/id/local-authority/12UE,Huntingdonshire District Council,12/07/2016,191670,DE10958999,5,"1,302.14",Dennis Eagle Ltd,CR000200,Domestic Refuse,Vehicle Parts & Fittings,625
http://statistics.data.gov.uk/id/local-authority/12UE,Huntingdonshire District Council,12/07/2016,192115,DE10960324,5,544.94,Dennis Eagle Ltd,CR000200,Domestic Refuse,Vehicle Parts & Fittings,625
http://statistics.data.gov.uk/id/local-authority/12UE,Huntingdonshire District Council,21/07/2016,192265,DE10961670,5,8.35,Dennis Eagle Ltd,CR000200,Domestic Refuse,Vehicle Parts & Fittings,625
http://statistics.data.gov.uk/id/local-authority/12UE,Huntingdonshire District Council,21/07/2016,192265,DE10961670,5,72.32,Dennis Eagle Ltd,CR000200,Domestic Refuse,Vehicle Parts & Fittings,625
http://statistics.data.gov.uk/id/local-authority/12UE,Huntingdonshire District Council,21/07/2016,192265,DE10961670,5,262.39,Dennis Eagle Ltd,CR000200,Domestic Refuse,Vehicle Parts & Fittings,625
http://statistics.data.gov.uk/id/local-authority/12UE,Huntingdonshire District Council,21/07/2016,192265,DE10961670,5,75.71,Dennis Eagle Ltd,CR000200,Domestic Refuse,Vehicle Parts & Fittings,625
http://statistics.data.gov.uk/id/local-authority/12UE,Huntingdonshire District Council,21/07/2016,192265,DE10961670,5,342.16,Dennis Eagle Ltd,CR000200,Domestic Refuse,Vehicle Parts & Fittings,625
http://statistics.data.gov.uk/id/local-authority/12UE,Huntingdonshire District Council,21/07/2016,192265,DE10961670,5,16.93,Dennis Eagle Ltd,CR000200,Domestic Refuse,Vehicle Parts & Fittings,625
http://statistics.data.gov.uk/id/local-authority/12UE,Huntingdonshire District Council,12/07/2016,192109,DE10962113,5,702.95,Dennis Eagle Ltd,CR000200,Domestic Refuse,Vehicle Parts & Fittings,625
http://statistics.data.gov.uk/id/local-authority/12UE,Huntingdonshire District Council,12/07/2016,192107,DE10962114,5,308.59,Dennis Eagle Ltd,CR000200,Domestic Refuse,Vehicle Parts & Fittings,625
http://statistics.data.gov.uk/id/local-authority/12UE,Huntingdonshire District Council,28/07/2016,192298,DE10963379,5,430.4,Dennis Eagle Ltd,CR000200,Domestic Refuse,Vehicle Parts & Fittings,625
http://statistics.data.gov.uk/id/local-authority/12UE,Huntingdonshire District Council,25/07/2016,192915,41070,5,554.02,E Rand And Sons,CR405746,Domestic Refuse,Vehicle Parts & Fittings,625
http://statistics.data.gov.uk/id/local-authority/12UE,Huntingdonshire District Council,21/07/2016,192634,83180,5,385.2,Frank Ratcliffe & Son,CR007546,Domestic Refuse,Vehicle Parts & Fittings,625
http://statistics.data.gov.uk/id/local-authority/12UE,Huntingdonshire District Council,28/07/2016,193116,20127249,5,737.11,Intercounty Truck & Van Ltd,CR141141,Domestic Refuse,Vehicle Parts & Fittings,625
http://statistics.data.gov.uk/id/local-authority/12UE,Huntingdonshire District Council,28/07/2016,193196,24437,5,"2,120.75",M & N Vehicle Services,CR480661,Domestic Refuse,Vehicle Parts & Fittings,625
http://statistics.data.gov.uk/id/local-authority/12UE,Huntingdonshire District Council,28/07/2016,192456,24591,5,994.59,M & N Vehicle Services,CR480661,Domestic Refuse,Vehicle Parts & Fittings,625
http://statistics.data.gov.uk/id/local-authority/12UE,Huntingdonshire District Council,28/07/2016,193194,24675,5,"2,528.55",M & N Vehicle Services,CR480661,Domestic Refuse,Vehicle Parts & Fittings,625
http://statistics.data.gov.uk/id/local-authority/12UE,Huntingdonshire District Council,12/07/2016,191688,58380422,5,270.86,Marshall Motor Group Ltd,CR009641,Domestic Refuse,Vehicle Parts & Fittings,625
http://statistics.data.gov.uk/id/local-authority/12UE,Huntingdonshire District Council,18/07/2016,191409,26417,5,"1,026.00",Ppk Services Ltd,CR423542,Domestic Refuse,Vehicle Parts & Fittings,625
http://statistics.data.gov.uk/id/local-authority/12UE,Huntingdonshire District Council,14/07/2016,191456,101104,5,288,Red Forge Ltd,CR405690,Domestic Refuse,Vehicle Parts & Fittings,625
http://statistics.data.gov.uk/id/local-authority/12UE,Huntingdonshire District Council,21/07/2016,192433,138106,5,348,Silver Shield Windscreens,CR024745,Domestic Refuse,Vehicle Parts & Fittings,625
http://statistics.data.gov.uk/id/local-authority/12UE,Huntingdonshire District Council,27/07/2016,192435,138290,5,348,Silver Shield Windscreens,CR024745,Domestic Refuse,Vehicle Parts & Fittings,625
http://statistics.data.gov.uk/id/local-authority/12UE,Huntingdonshire District Council,14/07/2016,192447,96327821,5,710.82,Terberg Matec Uk Ltd,CR402183,Domestic Refuse,Vehicle Parts & Fittings,625
http://statistics.data.gov.uk/id/local-authority/12UE,Huntingdonshire District Council,27/07/2016,192450,96328725,5,634.2,Terberg Matec Uk Ltd,CR402183,Domestic Refuse,Vehicle Parts & Fittings,625
http://statistics.data.gov.uk/id/local-authority/12UE,Huntingdonshire District Council,27/07/2016,192448,96328798,5,921.26,Terberg Matec Uk Ltd,CR402183,Domestic Refuse,Vehicle Parts & Fittings,625
http://statistics.data.gov.uk/id/local-authority/12UE,Huntingdonshire District Council,13/07/2016,192112,9601,5,806.4,G&C Coachworks Ltd,CR455755,Domestic Refuse,Vehicle Refurbishment,624
http://statistics.data.gov.uk/id/local-authority/12UE,Huntingdonshire District Council,13/07/2016,190916,30015,5,"1,349.38",Hi-Spec Facilities Services Plc,CR423413,E F H And Depots,Building Cleaning,440
http://statistics.data.gov.uk/id/local-authority/12UE,Huntingdonshire District Council,07/07/2016,190917,22380,5,311.42,B. S. Graves Electrical Ltd,CR000363,E F H And Depots,Building Mtce,303
http://statistics.data.gov.uk/id/local-authority/12UE,Huntingdonshire District Council,28/07/2016,192860,65924,5,"2,854.97",Haven Power Ltd,CR455940,E F H And Depots,Electricity,420
http://statistics.data.gov.uk/id/local-authority/12UE,Huntingdonshire District Council,28/07/2016,193214,CREDIT,5,"-2,854.97",Haven Power Ltd,CR455940,E F H And Depots,Electricity,420
http://statistics.data.gov.uk/id/local-authority/12UE,Huntingdonshire District Council,14/07/2016,192018,801225389,5,259.39,Swalec,CR407130,E F H And Depots,Electricity,420
http://statistics.data.gov.uk/id/local-authority/12UE,Huntingdonshire District Council,06/07/2016,191814,INV05267,5,357.64,Snacktime Vmi,CR482479,E F H And Depots,Other Services,799
http://statistics.data.gov.uk/id/local-authority/12UE,Huntingdonshire District Council,06/07/2016,191829,INV05513,5,271.25,Snacktime Vmi,CR482479,E F H And Depots,Other Services,799
http://statistics.data.gov.uk/id/local-authority/12UE,Huntingdonshire District Council,06/07/2016,191815,INV05750,5,357.64,Snacktime Vmi,CR482479,E F H And Depots,Other Services,799
http://statistics.data.gov.uk/id/local-authority/12UE,Huntingdonshire District Council,06/07/2016,191828,INV06001,5,282.71,Snacktime Vmi,CR482479,E F H And Depots,Other Services,799
http://statistics.data.gov.uk/id/local-authority/12UE,Huntingdonshire District Council,06/07/2016,191816,INV06245,5,357.64,Snacktime Vmi,CR482479,E F H And Depots,Other Services,799
http://statistics.data.gov.uk/id/local-authority/12UE,Huntingdonshire District Council,06/07/2016,191818,INV06495,5,293.59,Snacktime Vmi,CR482479,E F H And Depots,Other Services,799
http://statistics.data.gov.uk/id/local-authority/12UE,Huntingdonshire District Council,06/07/2016,191817,INV06745,5,357.64,Snacktime Vmi,CR482479,E F H And Depots,Other Services,799
http://statistics.data.gov.uk/id/local-authority/12UE,Huntingdonshire District Council,27/07/2016,192643,S3081406,5,"2,311.20",First In Service Ltd,CR422285,E F H And Depots,Plant & Equipment Maintenance,380
http://statistics.data.gov.uk/id/local-authority/12UE,Huntingdonshire District Council,28/07/2016,192072,130588239,5,921.81,Anglian Water,CR000071,E F H And Depots,Water & Sewerage,432
http://statistics.data.gov.uk/id/local-authority/12UE,Huntingdonshire District Council,07/07/2016,191414,9052337187,5,"6,723.64",Royal Mail,CR027083,Elections,Postage,231
http://statistics.data.gov.uk/id/local-authority/12UE,Huntingdonshire District Council,13/07/2016,191420,9052380724,5,"1,371.82",Royal Mail,CR027083,Elections,Postage,231
http://statistics.data.gov.uk/id/local-authority/12UE,Huntingdonshire District Council,13/07/2016,191841,9052441037,5,"5,952.28",Royal Mail,CR027083,Elections,Postage,231
http://statistics.data.gov.uk/id/local-authority/12UE,Huntingdonshire District Council,13/07/2016,192586,9052483704,5,"2,830.97",Royal Mail,CR027083,Elections,Postage,231
http://statistics.data.gov.uk/id/local-authority/12UE,Huntingdonshire District Council,07/07/2016,191282,2944,5,"10,413.60",Sci Print Limited,CR416581,Elections,Printing (External),220
http://statistics.data.gov.uk/id/local-authority/12UE,Huntingdonshire District Council,07/07/2016,191283,2949,5,526.8,Sci Print Limited,CR416581,Elections,Printing (External),220
http://statistics.data.gov.uk/id/local-authority/12UE,Huntingdonshire District Council,07/07/2016,191314,2958,5,469.2,Sci Print Limited,CR416581,Elections,Printing (External),220
http://statistics.data.gov.uk/id/local-authority/12UE,Huntingdonshire District Council,07/07/2016,190874,4HUN501,5,"2,074.80",Shaw & Sons Limited,CR003422,Elections,Printing (External),220
http://statistics.data.gov.uk/id/local-authority/12UE,Huntingdonshire District Council,12/07/2016,191312,13765,5,310.8,Victoirepress,CR404724,Elections,Printing (External),220
http://statistics.data.gov.uk/id/local-authority/12UE,Huntingdonshire District Council,13/07/2016,192230,29583,5,780,Community Information Services Ltd,CR478148,Electoral Registration,Advertising/Promoting Services,255
http://statistics.data.gov.uk/id/local-authority/12UE,Huntingdonshire District Council,13/07/2016,191618,9052386318,5,"1,855.51",Royal Mail,CR027083,Electoral Registration,Postage,231
http://statistics.data.gov.uk/id/local-authority/12UE,Huntingdonshire District Council,13/07/2016,191835,9052434983,5,667.59,Royal Mail,CR027083,Electoral Registration,Postage,231
http://statistics.data.gov.uk/id/local-authority/12UE,Huntingdonshire District Council,12/07/2016,190890,IN16PS16003194,5,487.84,Whistl Uk Ltd,CR479965,Electoral Registration,Postage,231
http://statistics.data.gov.uk/id/local-authority/12UE,Huntingdonshire District Council,12/07/2016,190889,IN16PS16003195,5,677.47,Whistl Uk Ltd,CR479965,Electoral Registration,Postage,231
http://statistics.data.gov.uk/id/local-authority/12UE,Huntingdonshire District Council,12/07/2016,191396,IN16PS16003499,5,582.28,Whistl Uk Ltd,CR479965,Electoral Registration,Postage,231
http://statistics.data.gov.uk/id/local-authority/12UE,Huntingdonshire District Council,12/07/2016,191395,IN16PS16003501,5,"1,735.95",Whistl Uk Ltd,CR479965,Electoral Registration,Postage,231
http://statistics.data.gov.uk/id/local-authority/12UE,Huntingdonshire District Council,13/07/2016,192051,2791,5,"2,592.00",K & M Lighting Services Ltd,CR455166,Environmental Imps Mgt,Sitework,359
http://statistics.data.gov.uk/id/local-authority/12UE,Huntingdonshire District Council,28/07/2016,193247,604522987,5,"1,733.37",Anglian Water,CR000071,Environmental Imps Mgt,Water & Sewerage,432
http://statistics.data.gov.uk/id/local-authority/12UE,Huntingdonshire District Council,13/07/2016,192095,192343,5,"1,134.00",Chevin Fleet Solutions,CR477454,Environmental Management,Licences,730
http://statistics.data.gov.uk/id/local-authority/12UE,Huntingdonshire District Council,18/07/2016,192616,1238217490,5,98.52,Orange Airtime,CR455799,Environmental Management,Telephone &Mobile Phonecharges,240
http://statistics.data.gov.uk/id/local-authority/12UE,Huntingdonshire District Council,28/07/2016,193244,HDC050,5,"2,069.22",C G Utilities,CR119758,Environmental Management,Utilities Monitoring,782
http://statistics.data.gov.uk/id/local-authority/12UE,Huntingdonshire District Council,28/07/2016,192333,56810,5,"7,200.00",Barker Storey Matthews,CR400788,Financial Services Mus,Consultants,711
http://statistics.data.gov.uk/id/local-authority/12UE,Huntingdonshire District Council,13/07/2016,190526,661512,5,2.4,Callcredit Ltd,CR455548,Financial Services Mus,Enquiries,723
http://statistics.data.gov.uk/id/local-authority/12UE,Huntingdonshire District Council,07/07/2016,190374,BC00187,5,"5,940.00",Barry Cornelius Associates,CR422523,Financial Services Mus,Hired Staff,100
http://statistics.data.gov.uk/id/local-authority/12UE,Huntingdonshire District Council,07/07/2016,190374,BC00187,5,"7,800.00",Barry Cornelius Associates,CR422523,Financial Services Mus,Hired Staff,100
http://statistics.data.gov.uk/id/local-authority/12UE,Huntingdonshire District Council,07/07/2016,192022,BC00198,5,"8,190.00",Barry Cornelius Associates,CR422523,Financial Services Mus,Hired Staff,100
http://statistics.data.gov.uk/id/local-authority/12UE,Huntingdonshire District Council,07/07/2016,192022,BC00198,5,"2,160.00",Barry Cornelius Associates,CR422523,Financial Services Mus,Hired Staff,100
http://statistics.data.gov.uk/id/local-authority/12UE,Huntingdonshire District Council,07/07/2016,191278,12343,5,393.1,Lightning Recruitment,CR028184,Financial Services Mus,Hired Staff,100
http://statistics.data.gov.uk/id/local-authority/12UE,Huntingdonshire District Council,12/07/2016,191740,12380,5,464.57,Lightning Recruitment,CR028184,Financial Services Mus,Hired Staff,100
http://statistics.data.gov.uk/id/local-authority/12UE,Huntingdonshire District Council,28/07/2016,192947,12449,5,375.23,Lightning Recruitment,CR028184,Financial Services Mus,Hired Staff,100
http://statistics.data.gov.uk/id/local-authority/12UE,Huntingdonshire District Council,13/07/2016,192331,33376,5,"1,205.90",Meyer Scott Recruitment Limited,CR422369,Financial Services Mus,Hired Staff,100
http://statistics.data.gov.uk/id/local-authority/12UE,Huntingdonshire District Council,05/07/2016,191028,33408,5,570.36,Meyer Scott Recruitment Limited,CR422369,Financial Services Mus,Hired Staff,100
http://statistics.data.gov.uk/id/local-authority/12UE,Huntingdonshire District Council,05/07/2016,191028,33408,5,602.95,Meyer Scott Recruitment Limited,CR422369,Financial Services Mus,Hired Staff,100
http://statistics.data.gov.uk/id/local-authority/12UE,Huntingdonshire District Council,05/07/2016,191027,33437,5,260.74,Meyer Scott Recruitment Limited,CR422369,Financial Services Mus,Hired Staff,100
http://statistics.data.gov.uk/id/local-authority/12UE,Huntingdonshire District Council,05/07/2016,191027,33437,5,497.02,Meyer Scott Recruitment Limited,CR422369,Financial Services Mus,Hired Staff,100
http://statistics.data.gov.uk/id/local-authority/12UE,Huntingdonshire District Council,13/07/2016,191709,33470,5,"1,083.68",Meyer Scott Recruitment Limited,CR422369,Financial Services Mus,Hired Staff,100
http://statistics.data.gov.uk/id/local-authority/12UE,Huntingdonshire District Council,13/07/2016,192084,33529,5,"1,087.76",Meyer Scott Recruitment Limited,CR422369,Financial Services Mus,Hired Staff,100
http://statistics.data.gov.uk/id/local-authority/12UE,Huntingdonshire District Council,13/07/2016,192332,33564,5,"1,214.05",Meyer Scott Recruitment Limited,CR422369,Financial Services Mus,Hired Staff,100
http://statistics.data.gov.uk/id/local-authority/12UE,Huntingdonshire District Council,13/07/2016,192086,35500,5,920.72,Meyer Scott Recruitment Limited,CR422369,Financial Services Mus,Hired Staff,100
http://statistics.data.gov.uk/id/local-authority/12UE,Huntingdonshire District Council,28/07/2016,192291,SN2430923,5,381.6,Berendsen,CR478298,Fleet Management,Materials,550
http://statistics.data.gov.uk/id/local-authority/12UE,Huntingdonshire District Council,18/07/2016,192453,37216,5,384.77,Trinity Engineering & Component Supplies Ltd,CR455479,Fleet Management,Materials,550
http://statistics.data.gov.uk/id/local-authority/12UE,Huntingdonshire District Council,18/07/2016,192451,37217,5,265.64,Trinity Engineering & Component Supplies Ltd,CR455479,Fleet Management,Materials,550
http://statistics.data.gov.uk/id/local-authority/12UE,Huntingdonshire District Council,12/07/2016,192122,D95719,5,557.05,Dennis Eagle Ltd,CR000200,Fleet Management,Training,130
http://statistics.data.gov.uk/id/local-authority/12UE,Huntingdonshire District Council,07/07/2016,191662,266197I,5,16.8,A C Commercials,CR000141,Fleet Management,Vehicle Oil & Lubricants,626
http://statistics.data.gov.uk/id/local-authority/12UE,Huntingdonshire District Council,21/07/2016,192781,266488I,5,52.56,A C Commercials,CR000141,Fleet Management,Vehicle Oil & Lubricants,626
http://statistics.data.gov.uk/id/local-authority/12UE,Huntingdonshire District Council,27/07/2016,192269,178713,5,486.77,Arthur Ibbett Ltd,CR000430,Fleet Management,Vehicle Parts & Fittings,625
http://statistics.data.gov.uk/id/local-authority/12UE,Huntingdonshire District Council,12/07/2016,192097,37702,5,313.2,Groundsman,CR422159,Grounds Maintenance,Materials,550
http://statistics.data.gov.uk/id/local-authority/12UE,Huntingdonshire District Council,07/07/2016,191684,SIN0611971,5,313.92,Howsafe Ltd,CR000409,Grounds Maintenance,Materials,550
http://statistics.data.gov.uk/id/local-authority/12UE,Huntingdonshire District Council,14/07/2016,192277,55171,5,"1,069.44",Berrycroft Stores Ltd,CR000298,Grounds Maintenance,Plants And Seeds,556
http://statistics.data.gov.uk/id/local-authority/12UE,Huntingdonshire District Council,14/07/2016,192593,S1416,7,"11,355.18",Peter J Ward,CR404318,Grounds Maintenance,Plants And Seeds,556
http://statistics.data.gov.uk/id/local-authority/12UE,Huntingdonshire District Council,13/07/2016,190563,348563,5,380.4,Smi Group,CR423139,Grounds Maintenance,Protective Clothing & Uniforms,163
http://statistics.data.gov.uk/id/local-authority/12UE,Huntingdonshire District Council,14/07/2016,192266,60000044,5,540,Bedford College,CR005649,Grounds Maintenance,Training,130
http://statistics.data.gov.uk/id/local-authority/12UE,Huntingdonshire District Council,07/07/2016,191662,266197I,5,193.16,A C Commercials,CR000141,Grounds Maintenance,Vehicle Oil & Lubricants,626
http://statistics.data.gov.uk/id/local-authority/12UE,Huntingdonshire District Council,21/07/2016,192781,266488I,5,604.44,A C Commercials,CR000141,Grounds Maintenance,Vehicle Oil & Lubricants,626
http://statistics.data.gov.uk/id/local-authority/12UE,Huntingdonshire District Council,07/07/2016,192121,782960,5,277.97,Ernest Doe & Sons,CR000261,Grounds Maintenance,Vehicle Parts & Fittings,625
http://statistics.data.gov.uk/id/local-authority/12UE,Huntingdonshire District Council,18/07/2016,192480,58380770,5,291.13,Marshall Motor Group Ltd,CR009641,Grounds Maintenance,Vehicle Parts & Fittings,625
http://statistics.data.gov.uk/id/local-authority/12UE,Huntingdonshire District Council,13/07/2016,190713,153108,5,288.28,Priden Engineering Limited,CR423487,Grounds Maintenance,Vehicle Parts & Fittings,625
http://statistics.data.gov.uk/id/local-authority/12UE,Huntingdonshire District Council,18/07/2016,191463,8020771,5,562,Reesink Turfcare Uk Ltd,CR098282,Grounds Maintenance,Vehicle Parts & Fittings,625
http://statistics.data.gov.uk/id/local-authority/12UE,Huntingdonshire District Council,07/07/2016,599713,189850,5,407.96,Cambridge City Council,CR017896,Homelessness Management,Bed & Breakfast Payment,818
http://statistics.data.gov.uk/id/local-authority/12UE,Huntingdonshire District Council,28/07/2016,193067,190126,5,407.96,Cambridge City Council,CR017896,Homelessness Management,Bed & Breakfast Payment,818
http://statistics.data.gov.uk/id/local-authority/12UE,Huntingdonshire District Council,13/07/2016,191719,21/206,5,"1,190.00",The Station Hotel,CR453752,Homelessness Management,Bed & Breakfast Payment,818
http://statistics.data.gov.uk/id/local-authority/12UE,Huntingdonshire District Council,13/07/2016,191718,22/2016,5,"1,260.00",The Station Hotel,CR453752,Homelessness Management,Bed & Breakfast Payment,818
http://statistics.data.gov.uk/id/local-authority/12UE,Huntingdonshire District Council,13/07/2016,191714,23/2016,5,"1,190.00",The Station Hotel,CR453752,Homelessness Management,Bed & Breakfast Payment,818
http://statistics.data.gov.uk/id/local-authority/12UE,Huntingdonshire District Council,13/07/2016,191715,24/2016,5,"1,260.00",The Station Hotel,CR453752,Homelessness Management,Bed & Breakfast Payment,818
http://statistics.data.gov.uk/id/local-authority/12UE,Huntingdonshire District Council,28/07/2016,193060,25/2016,5,"1,190.00",The Station Hotel,CR453752,Homelessness Management,Bed & Breakfast Payment,818
http://statistics.data.gov.uk/id/local-authority/12UE,Huntingdonshire District Council,28/07/2016,193061,26/2016,5,"1,260.00",The Station Hotel,CR453752,Homelessness Management,Bed & Breakfast Payment,818
http://statistics.data.gov.uk/id/local-authority/12UE,Huntingdonshire District Council,28/07/2016,193063,27/2016,5,"1,190.00",The Station Hotel,CR453752,Homelessness Management,Bed & Breakfast Payment,818
http://statistics.data.gov.uk/id/local-authority/12UE,Huntingdonshire District Council,28/07/2016,193065,28/2016,5,"1,260.00",The Station Hotel,CR453752,Homelessness Management,Bed & Breakfast Payment,818
http://statistics.data.gov.uk/id/local-authority/12UE,Huntingdonshire District Council,05/07/2016,191354,EC026,5,"3,120.00",Ukos Projects Ltd,CR423164,Homelessness Management,Bed & Breakfast Payment,818
http://statistics.data.gov.uk/id/local-authority/12UE,Huntingdonshire District Council,05/07/2016,191720,EC027,5,"2,520.00",Ukos Projects Ltd,CR423164,Homelessness Management,Bed & Breakfast Payment,818
http://statistics.data.gov.uk/id/local-authority/12UE,Huntingdonshire District Council,11/07/2016,192014,EC028,5,"2,940.00",Ukos Projects Ltd,CR423164,Homelessness Management,Bed & Breakfast Payment,818
http://statistics.data.gov.uk/id/local-authority/12UE,Huntingdonshire District Council,13/07/2016,192342,EC029,5,"3,400.00",Ukos Projects Ltd,CR423164,Homelessness Management,Bed & Breakfast Payment,818
http://statistics.data.gov.uk/id/local-authority/12UE,Huntingdonshire District Council,21/07/2016,192733,EC030,5,"2,835.00",Ukos Projects Ltd,CR423164,Homelessness Management,Bed & Breakfast Payment,818
http://statistics.data.gov.uk/id/local-authority/12UE,Huntingdonshire District Council,28/07/2016,193059,EC031,5,"2,460.00",Ukos Projects Ltd,CR423164,Homelessness Management,Bed & Breakfast Payment,818
http://statistics.data.gov.uk/id/local-authority/12UE,Huntingdonshire District Council,21/07/2016,192736,3026465,5,"18,102.35",Metropolitan Housing Trust Ltd,CR487206,Homelessness Management,Hostel Revenue Support,817
http://statistics.data.gov.uk/id/local-authority/12UE,Huntingdonshire District Council,07/07/2016,192164,19312,5,"1,811.44",King Street Housing Society,CR409301,Homelessness Management,Management Charge,733
http://statistics.data.gov.uk/id/local-authority/12UE,Huntingdonshire District Council,14/07/2016,192645,19337,5,968.08,King Street Housing Society,CR409301,Homelessness Management,Management Charge,733
http://statistics.data.gov.uk/id/local-authority/12UE,Huntingdonshire District Council,21/07/2016,192739,REDACTED PERSONAL DATA,5,648,Alexanders,CR415843,Homelessness Management,Removal/Storage,750
http://statistics.data.gov.uk/id/local-authority/12UE,Huntingdonshire District Council,13/07/2016,190526,661512,5,51.6,Callcredit Ltd,CR455548,Housing  Benefits Admin,Enquiries,723
http://statistics.data.gov.uk/id/local-authority/12UE,Huntingdonshire District Council,13/07/2016,192165,665106,5,28.8,Callcredit Ltd,CR455548,Housing  Benefits Admin,Enquiries,723
http://statistics.data.gov.uk/id/local-authority/12UE,Huntingdonshire District Council,07/07/2016,190508,3187796,5,"1,269.00",Venn Group Recruitment,CR415403,Housing  Benefits Admin,Hired Staff,100
http://statistics.data.gov.uk/id/local-authority/12UE,Huntingdonshire District Council,07/07/2016,190880,3190311,5,916.39,Venn Group Recruitment,CR415403,Housing  Benefits Admin,Hired Staff,100
http://statistics.data.gov.uk/id/local-authority/12UE,Huntingdonshire District Council,12/07/2016,190890,IN16PS16003194,5,325.38,Whistl Uk Ltd,CR479965,Housing  Benefits Admin,Postage,231
http://statistics.data.gov.uk/id/local-authority/12UE,Huntingdonshire District Council,12/07/2016,190889,IN16PS16003195,5,573.49,Whistl Uk Ltd,CR479965,Housing  Benefits Admin,Postage,231
http://statistics.data.gov.uk/id/local-authority/12UE,Huntingdonshire District Council,12/07/2016,191395,IN16PS16003501,5,337.5,Whistl Uk Ltd,CR479965,Housing  Benefits Admin,Postage,231
http://statistics.data.gov.uk/id/local-authority/12UE,Huntingdonshire District Council,06/07/2016,191553,DIHH/00002949,5,"7,013.20",Luminus Homes,CR401276,Housing Services Other,Management Charge,733
http://statistics.data.gov.uk/id/local-authority/12UE,Huntingdonshire District Council,13/07/2016,192098,462033,5,300,Alere Toxicology Plc,CR423561,Human Resources,Medical Fees,734
http://statistics.data.gov.uk/id/local-authority/12UE,Huntingdonshire District Council,13/07/2016,191625,9187492,6,"11,091.92",East Of England Lga,CR422620,Human Resources,Training,130
http://statistics.data.gov.uk/id/local-authority/12UE,Huntingdonshire District Council,13/07/2016,190600,2283,5,468,Gilden Training,CR481057,Human Resources,Training,130
http://statistics.data.gov.uk/id/local-authority/12UE,Huntingdonshire District Council,18/07/2016,192299,2287,5,"1,555.20",Gilden Training,CR481057,Human Resources,Training,130
http://statistics.data.gov.uk/id/local-authority/12UE,Huntingdonshire District Council,13/07/2016,191937,2195064,5,322.8,Haymarket Media Group Ltd,CR479500,Human Resources,Training,130
http://statistics.data.gov.uk/id/local-authority/12UE,Huntingdonshire District Council,13/07/2016,191352,1699,5,"1,200.00",Magenta Coaching Solutions,CR480942,Human Resources,Training,130
http://statistics.data.gov.uk/id/local-authority/12UE,Huntingdonshire District Council,15/07/2016,192252,158,5,224.49,Study Active Ltd,CR423570,Human Resources,Training,130
http://statistics.data.gov.uk/id/local-authority/12UE,Huntingdonshire District Council,14/07/2016,192445,96328127,5,594,Terberg Matec Uk Ltd,CR402183,Human Resources,Training,130
http://statistics.data.gov.uk/id/local-authority/12UE,Huntingdonshire District Council,21/07/2016,192446,96328377,5,384,Terberg Matec Uk Ltd,CR402183,Human Resources,Training,130
http://statistics.data.gov.uk/id/local-authority/12UE,Huntingdonshire District Council,13/07/2016,191451,210616_9,5,630,Ict Projects Ltd,CR423374,Imd Shared Service,Hired Staff,100
http://statistics.data.gov.uk/id/local-authority/12UE,Huntingdonshire District Council,28/07/2016,193144,122092,5,"3,150.00",It Talent Solutions Ltd,CR482676,Imd Shared Service,Hired Staff,100
http://statistics.data.gov.uk/id/local-authority/12UE,Huntingdonshire District Council,07/07/2016,192150,12450,5,565.6,Lightning Recruitment,CR028184,Imd Shared Service,Hired Staff,100
http://statistics.data.gov.uk/id/local-authority/12UE,Huntingdonshire District Council,21/07/2016,192922,12485,5,353.72,Lightning Recruitment,CR028184,Imd Shared Service,Hired Staff,100
http://statistics.data.gov.uk/id/local-authority/12UE,Huntingdonshire District Council,27/07/2016,192621,94522465,5,"3,414.08",Northgate Arinso,CR416738,Imd Shared Service,Hired Staff,100
http://statistics.data.gov.uk/id/local-authority/12UE,Huntingdonshire District Council,27/07/2016,192620,94522657,5,"1,137.36",Northgate Arinso,CR416738,Imd Shared Service,Hired Staff,100
http://statistics.data.gov.uk/id/local-authority/12UE,Huntingdonshire District Council,06/07/2016,191450,R012800,5,"1,320.00",Premier It Recruitment Ltd,CR454029,Imd Shared Service,Hired Staff,100
http://statistics.data.gov.uk/id/local-authority/12UE,Huntingdonshire District Council,06/07/2016,191449,R012801,5,"1,320.00",Premier It Recruitment Ltd,CR454029,Imd Shared Service,Hired Staff,100
http://statistics.data.gov.uk/id/local-authority/12UE,Huntingdonshire District Council,06/07/2016,191448,R012802,5,"1,320.00",Premier It Recruitment Ltd,CR454029,Imd Shared Service,Hired Staff,100
http://statistics.data.gov.uk/id/local-authority/12UE,Huntingdonshire District Council,06/07/2016,190357,R014388,5,"1,320.00",Premier It Recruitment Ltd,CR454029,Imd Shared Service,Hired Staff,100
http://statistics.data.gov.uk/id/local-authority/12UE,Huntingdonshire District Council,06/07/2016,190356,R014424,5,"1,320.00",Premier It Recruitment Ltd,CR454029,Imd Shared Service,Hired Staff,100
http://statistics.data.gov.uk/id/local-authority/12UE,Huntingdonshire District Council,06/07/2016,190354,R014444,5,"1,320.00",Premier It Recruitment Ltd,CR454029,Imd Shared Service,Hired Staff,100
http://statistics.data.gov.uk/id/local-authority/12UE,Huntingdonshire District Council,06/07/2016,191099,R014552,5,"1,056.00",Premier It Recruitment Ltd,CR454029,Imd Shared Service,Hired Staff,100
http://statistics.data.gov.uk/id/local-authority/12UE,Huntingdonshire District Council,06/07/2016,191098,R014562,5,"1,056.00",Premier It Recruitment Ltd,CR454029,Imd Shared Service,Hired Staff,100
http://statistics.data.gov.uk/id/local-authority/12UE,Huntingdonshire District Council,06/07/2016,191097,R014610,5,"1,056.00",Premier It Recruitment Ltd,CR454029,Imd Shared Service,Hired Staff,100
http://statistics.data.gov.uk/id/local-authority/12UE,Huntingdonshire District Council,06/07/2016,191100,R014688,5,"1,320.00",Premier It Recruitment Ltd,CR454029,Imd Shared Service,Hired Staff,100
http://statistics.data.gov.uk/id/local-authority/12UE,Huntingdonshire District Council,06/07/2016,191101,R014693,5,"1,320.00",Premier It Recruitment Ltd,CR454029,Imd Shared Service,Hired Staff,100
http://statistics.data.gov.uk/id/local-authority/12UE,Huntingdonshire District Council,13/07/2016,191447,R014829,5,"4,800.00",Premier It Recruitment Ltd,CR454029,Imd Shared Service,Hired Staff,100
http://statistics.data.gov.uk/id/local-authority/12UE,Huntingdonshire District Council,13/07/2016,191452,R014881,5,"1,320.00",Premier It Recruitment Ltd,CR454029,Imd Shared Service,Hired Staff,100
http://statistics.data.gov.uk/id/local-authority/12UE,Huntingdonshire District Council,13/07/2016,191453,R014882,5,"1,320.00",Premier It Recruitment Ltd,CR454029,Imd Shared Service,Hired Staff,100
http://statistics.data.gov.uk/id/local-authority/12UE,Huntingdonshire District Council,13/07/2016,191454,R014905,5,"1,320.00",Premier It Recruitment Ltd,CR454029,Imd Shared Service,Hired Staff,100
http://statistics.data.gov.uk/id/local-authority/12UE,Huntingdonshire District Council,13/07/2016,191789,R015061,5,"1,320.00",Premier It Recruitment Ltd,CR454029,Imd Shared Service,Hired Staff,100
http://statistics.data.gov.uk/id/local-authority/12UE,Huntingdonshire District Council,13/07/2016,192148,R015171,5,"1,056.00",Premier It Recruitment Ltd,CR454029,Imd Shared Service,Hired Staff,100
http://statistics.data.gov.uk/id/local-authority/12UE,Huntingdonshire District Council,13/07/2016,192149,R015172,5,"1,056.00",Premier It Recruitment Ltd,CR454029,Imd Shared Service,Hired Staff,100
http://statistics.data.gov.uk/id/local-authority/12UE,Huntingdonshire District Council,13/07/2016,191110,12219,5,"8,928.00",Vivid Resourcing Limited,CR423536,Imd Shared Service,Hired Staff,100
http://statistics.data.gov.uk/id/local-authority/12UE,Huntingdonshire District Council,13/07/2016,191446,12397,5,"3,720.00",Vivid Resourcing Limited,CR423536,Imd Shared Service,Hired Staff,100
http://statistics.data.gov.uk/id/local-authority/12UE,Huntingdonshire District Council,13/07/2016,191785,12573,5,"2,976.00",Vivid Resourcing Limited,CR423536,Imd Shared Service,Hired Staff,100
http://statistics.data.gov.uk/id/local-authority/12UE,Huntingdonshire District Council,13/07/2016,192151,12758,5,"3,720.00",Vivid Resourcing Limited,CR423536,Imd Shared Service,Hired Staff,100
http://statistics.data.gov.uk/id/local-authority/12UE,Huntingdonshire District Council,21/07/2016,192957,7009994,5,"1,140.00",Idox,CR481134,Imd Shared Service,I C T Services,731
http://statistics.data.gov.uk/id/local-authority/12UE,Huntingdonshire District Council,13/07/2016,191108,923469-068A,5,"7,898.90",Virgin Media Business/Cpsn,CR455148,Imd Shared Service,I T Line Rental,248
http://statistics.data.gov.uk/id/local-authority/12UE,Huntingdonshire District Council,13/07/2016,191784,923469-069A,5,"7,898.90",Virgin Media Business/Cpsn,CR455148,Imd Shared Service,I T Line Rental,248
http://statistics.data.gov.uk/id/local-authority/12UE,Huntingdonshire District Council,13/07/2016,192153,UK10/072016/167,5,"1,267.34",Vodafone Cable & Wireless,CR482316,Imd Shared Service,I T Line Rental,248
http://statistics.data.gov.uk/id/local-authority/12UE,Huntingdonshire District Council,13/07/2016,190370,SINV00089637,5,336,Bist,CR422733,Imd Shared Service,Other I T Hardware,203
http://statistics.data.gov.uk/id/local-authority/12UE,Huntingdonshire District Council,13/07/2016,190373,SINV00089883,5,900,Bist,CR422733,Imd Shared Service,Other I T Hardware,203
http://statistics.data.gov.uk/id/local-authority/12UE,Huntingdonshire District Council,13/07/2016,190371,SINV00089884,5,32.64,Bist,CR422733,Imd Shared Service,Other I T Hardware,203
http://statistics.data.gov.uk/id/local-authority/12UE,Huntingdonshire District Council,13/07/2016,190371,SINV00089884,5,879.6,Bist,CR422733,Imd Shared Service,Other I T Hardware,203
http://statistics.data.gov.uk/id/local-authority/12UE,Huntingdonshire District Council,13/07/2016,190739,SINV00090305,5,"5,594.40",Bist,CR422733,Imd Shared Service,Other I T Hardware,203
http://statistics.data.gov.uk/id/local-authority/12UE,Huntingdonshire District Council,13/07/2016,191436,SINV00090685,5,"1,275.60",Bist,CR422733,Imd Shared Service,Other I T Hardware,203
http://statistics.data.gov.uk/id/local-authority/12UE,Huntingdonshire District Council,28/07/2016,192108,1023763,5,11.94,Coolspirit Ltd,CR416326,Imd Shared Service,Other I T Hardware,203
http://statistics.data.gov.uk/id/local-authority/12UE,Huntingdonshire District Council,28/07/2016,192108,1023763,5,747.94,Coolspirit Ltd,CR416326,Imd Shared Service,Other I T Hardware,203
http://statistics.data.gov.uk/id/local-authority/12UE,Huntingdonshire District Council,28/07/2016,192108,1023763,5,24.19,Coolspirit Ltd,CR416326,Imd Shared Service,Other I T Hardware,203
http://statistics.data.gov.uk/id/local-authority/12UE,Huntingdonshire District Council,12/07/2016,191435,2925237,5,258,Insight Direct Uk Ltd,CR000242,Imd Shared Service,Other I T Hardware,203
http://statistics.data.gov.uk/id/local-authority/12UE,Huntingdonshire District Council,28/07/2016,192626,41612,5,714,Sdi,CR406453,Imd Shared Service,Registration Fee,748
http://statistics.data.gov.uk/id/local-authority/12UE,Huntingdonshire District Council,12/07/2016,191782,ARCMIN/99057371,5,"3,093.54",Advanced Business Solutions,CR032921,Imd Shared Service,Software,206
http://statistics.data.gov.uk/id/local-authority/12UE,Huntingdonshire District Council,13/07/2016,190723,102375,5,"4,872.96",It Asset Management Solutions Ltd,CR454032,Imd Shared Service,Software,206
http://statistics.data.gov.uk/id/local-authority/12UE,Huntingdonshire District Council,14/07/2016,192619,94521618,5,"6,999.60",Northgate Arinso,CR416738,Imd Shared Service,Software,206
http://statistics.data.gov.uk/id/local-authority/12UE,Huntingdonshire District Council,21/07/2016,192618,94522013,5,"1,200.00",Northgate Arinso,CR416738,Imd Shared Service,Software,206
http://statistics.data.gov.uk/id/local-authority/12UE,Huntingdonshire District Council,28/07/2016,192959,INV8802,5,"1,152.00",Socitm,CR403291,Imd Shared Service,Software,206
http://statistics.data.gov.uk/id/local-authority/12UE,Huntingdonshire District Council,06/07/2016,190744,INV01386607,5,"1,086.00",Softcat,CR422246,Imd Shared Service,Software,206
http://statistics.data.gov.uk/id/local-authority/12UE,Huntingdonshire District Council,06/07/2016,190744,INV01386607,5,905.4,Softcat,CR422246,Imd Shared Service,Software,206
http://statistics.data.gov.uk/id/local-authority/12UE,Huntingdonshire District Council,18/07/2016,192616,1238217490,5,"1,804.31",Orange Airtime,CR455799,Imd Shared Service,Telephone &Mobile Phonecharges,240
http://statistics.data.gov.uk/id/local-authority/12UE,Huntingdonshire District Council,21/07/2016,192954,7010860,5,"1,500.00",Idox,CR481134,Imd Shared Service,Training,130
http://statistics.data.gov.uk/id/local-authority/12UE,Huntingdonshire District Council,13/07/2016,191126,PDPT-PCDP-19531,5,"2,754.00",Pdp Training,CR482644,Imd Shared Service,Training,130
http://statistics.data.gov.uk/id/local-authority/12UE,Huntingdonshire District Council,13/07/2016,192328,1637225,5,420.9,Weightmans,CR455744,Insurance Premium Holding,Insurance Employers,162
http://statistics.data.gov.uk/id/local-authority/12UE,Huntingdonshire District Council,13/07/2016,192329,V1642842,5,307.2,Weightmans,CR455744,Insurance Premium Holding,Insurance Public Liability,160
http://statistics.data.gov.uk/id/local-authority/12UE,Huntingdonshire District Council,13/07/2016,192330,V1643978,5,360,Weightmans,CR455744,Insurance Premium Holding,Insurance Public Liability,160
http://statistics.data.gov.uk/id/local-authority/12UE,Huntingdonshire District Council,12/07/2016,190685,14157,5,334.8,Jade Security Services Ltd,CR422256,Interest Received,Cash Collection,702
http://statistics.data.gov.uk/id/local-authority/12UE,Huntingdonshire District Council,27/07/2016,192805,14304,5,368.28,Jade Security Services Ltd,CR422256,Interest Received,Cash Collection,702
http://statistics.data.gov.uk/id/local-authority/12UE,Huntingdonshire District Council,12/07/2016,191177,3089198,5,"1,882.80",First In Service Ltd,CR422285,Leisure Centres Capital,Plant & Equipment Maintenance,380
http://statistics.data.gov.uk/id/local-authority/12UE,Huntingdonshire District Council,13/07/2016,191445,425995,5,"3,050.75",Heasell Electromechanical Services Ltd,CR422407,Leisure Centres Capital,Plant & Equipment Maintenance,380
http://statistics.data.gov.uk/id/local-authority/12UE,Huntingdonshire District Council,13/07/2016,190939,3757,5,"2,120.00",Adams Autos,CR422066,Licences,Vehicle Inspection,618
http://statistics.data.gov.uk/id/local-authority/12UE,Huntingdonshire District Council,13/07/2016,192044,3863,5,"1,770.00",Adams Autos,CR422066,Licences,Vehicle Inspection,618
http://statistics.data.gov.uk/id/local-authority/12UE,Huntingdonshire District Council,21/07/2016,192950,16/89,5,763.2,Nabma,CR030578,Markets,Corporate Subscriptions,754
http://statistics.data.gov.uk/id/local-authority/12UE,Huntingdonshire District Council,13/07/2016,191119,9188090,6,"10,440.00",East Of England Lga,CR422620,Member Allowances & Support,Corporate Subscriptions,754
http://statistics.data.gov.uk/id/local-authority/12UE,Huntingdonshire District Council,13/07/2016,192000,900746693,5,807.04,Portakabin Ltd,CR478566,Miscellaneous Grants,Grants (Paid Out),800
http://statistics.data.gov.uk/id/local-authority/12UE,Huntingdonshire District Council,13/07/2016,190942,3819,5,"1,140.00",Mallard Consultancy Ltd,CR455198,Nuisances,Corporate Subscriptions,754
http://statistics.data.gov.uk/id/local-authority/12UE,Huntingdonshire District Council,27/07/2016,192045,INV-3689,5,634.8,Novus Compliance Services Ltd,CR423524,Off Street Parking,Building Mtce,303
http://statistics.data.gov.uk/id/local-authority/12UE,Huntingdonshire District Council,14/07/2016,192274,114127,5,"3,610.33",Cale Briparc Ltd,CR401137,Off Street Parking,Car Park Machines,522
http://statistics.data.gov.uk/id/local-authority/12UE,Huntingdonshire District Council,21/07/2016,192273,114511,5,"3,610.33",Cale Briparc Ltd,CR401137,Off Street Parking,Car Park Machines,522
http://statistics.data.gov.uk/id/local-authority/12UE,Huntingdonshire District Council,12/07/2016,191133,14156,5,"4,357.08",Jade Security Services Ltd,CR422256,Off Street Parking,Cash Collection,702
http://statistics.data.gov.uk/id/local-authority/12UE,Huntingdonshire District Council,12/07/2016,192081,011398241360//,5,261.5,E-On Energy,CR416430,Off Street Parking,Electricity,420
http://statistics.data.gov.uk/id/local-authority/12UE,Huntingdonshire District Council,14/07/2016,192017,321225941,5,272.77,Swalec,CR407130,Off Street Parking,Electricity,420
http://statistics.data.gov.uk/id/local-authority/12UE,Huntingdonshire District Council,14/07/2016,192063,491225588,5,289.21,Swalec,CR407130,Off Street Parking,Electricity,420
http://statistics.data.gov.uk/id/local-authority/12UE,Huntingdonshire District Council,13/07/2016,191471,536386,5,948.72,Cdp Print Management,CR422714,Off Street Parking,Equipment,500
http://statistics.data.gov.uk/id/local-authority/12UE,Huntingdonshire District Council,27/07/2016,192751,GW16048F,5,91.13,Grafham Water Centre,CR416894,One Leisure Active Lifestyles,Hire Of Rooms,411
http://statistics.data.gov.uk/id/local-authority/12UE,Huntingdonshire District Council,27/07/2016,192751,GW16048F,5,273.37,Grafham Water Centre,CR416894,One Leisure Active Lifestyles,Instructors/Tutors,720
http://statistics.data.gov.uk/id/local-authority/12UE,Huntingdonshire District Council,28/07/2016,193220,V2049,5,390,Impie Ltd,CR480569,One Leisure Corporate Mgt,Advertising/Promoting Services,255
http://statistics.data.gov.uk/id/local-authority/12UE,Huntingdonshire District Council,04/07/2016,187407,139243,5,121.2,Lead Forensics,CR423143,One Leisure Corporate Mgt,Advertising/Promoting Services,255
http://statistics.data.gov.uk/id/local-authority/12UE,Huntingdonshire District Council,28/07/2016,193217,2017,5,360,My Friend Directories,CR482680,One Leisure Corporate Mgt,Advertising/Promoting Services,255
http://statistics.data.gov.uk/id/local-authority/12UE,Huntingdonshire District Council,04/07/2016,191168,179,5,500,St Ives Quay News,CR422868,One Leisure Corporate Mgt,Advertising/Promoting Services,255
http://statistics.data.gov.uk/id/local-authority/12UE,Huntingdonshire District Council,12/07/2016,190890,IN16PS16003194,5,"1,004.14",Whistl Uk Ltd,CR479965,One Leisure Corporate Mgt,Postage,231
http://statistics.data.gov.uk/id/local-authority/12UE,Huntingdonshire District Council,04/07/2016,187407,139243,5,120,Lead Forensics,CR423143,One Leisure Huntingdon,Advertising/Promoting Services,255
http://statistics.data.gov.uk/id/local-authority/12UE,Huntingdonshire District Council,28/07/2016,193218,2015,5,330,My Friend Directories,CR482680,One Leisure Huntingdon,Advertising/Promoting Services,255
http://statistics.data.gov.uk/id/local-authority/12UE,Huntingdonshire District Council,28/07/2016,191175,1351,5,90,Talk Twenty 1,CR422876,One Leisure Huntingdon,Advertising/Promoting Services,255
http://statistics.data.gov.uk/id/local-authority/12UE,Huntingdonshire District Council,28/07/2016,193032,3011409946,5,126,Yell Limited,CR416111,One Leisure Huntingdon,Advertising/Promoting Services,255
http://statistics.data.gov.uk/id/local-authority/12UE,Huntingdonshire District Council,13/07/2016,190916,30015,5,755.65,Hi-Spec Facilities Services Plc,CR423413,One Leisure Huntingdon,Building Cleaning,440
http://statistics.data.gov.uk/id/local-authority/12UE,Huntingdonshire District Council,04/07/2016,190529,20095,5,355.2,Bh Doors & Engineering Ltd,CR455707,One Leisure Huntingdon,Building Mtce,303
http://statistics.data.gov.uk/id/local-authority/12UE,Huntingdonshire District Council,12/07/2016,190685,14157,5,234.36,Jade Security Services Ltd,CR422256,One Leisure Huntingdon,Cash Collection,702
http://statistics.data.gov.uk/id/local-authority/12UE,Huntingdonshire District Council,27/07/2016,192805,14304,5,301.32,Jade Security Services Ltd,CR422256,One Leisure Huntingdon,Cash Collection,702
http://statistics.data.gov.uk/id/local-authority/12UE,Huntingdonshire District Council,27/07/2016,192313,4080459,1,181.26,Espo,CR006566,One Leisure Huntingdon,Cleaning Materials,443
http://statistics.data.gov.uk/id/local-authority/12UE,Huntingdonshire District Council,13/07/2016,191291,GD492,5,264,Greenday Energy Ltd,CR422398,One Leisure Huntingdon,Consultants,711
http://statistics.data.gov.uk/id/local-authority/12UE,Huntingdonshire District Council,07/07/2016,190926,600007921,5,432,Edf Energy Customer Field Services,CR477611,One Leisure Huntingdon,Electricity,420
http://statistics.data.gov.uk/id/local-authority/12UE,Huntingdonshire District Council,28/07/2016,192862,65916,5,"4,614.72",Haven Power Ltd,CR455940,One Leisure Huntingdon,Electricity,420
http://statistics.data.gov.uk/id/local-authority/12UE,Huntingdonshire District Council,28/07/2016,193216,CREIDT,5,"-4,614.72",Haven Power Ltd,CR455940,One Leisure Huntingdon,Electricity,420
http://statistics.data.gov.uk/id/local-authority/12UE,Huntingdonshire District Council,21/07/2016,192867,381239505,5,652.29,Swalec,CR407130,One Leisure Huntingdon,Electricity,420
http://statistics.data.gov.uk/id/local-authority/12UE,Huntingdonshire District Council,13/07/2016,191798,502418,5,360,Kidscience Ltd,CR452703,One Leisure Huntingdon,Entertainments Inc Cable Tv,744
http://statistics.data.gov.uk/id/local-authority/12UE,Huntingdonshire District Council,28/07/2016,191469,SI345692-1,5,990,Rlss Uk Enterprises Ltd - Lifesavers Direct,CR401615,One Leisure Huntingdon,Equipment,500
http://statistics.data.gov.uk/id/local-authority/12UE,Huntingdonshire District Council,25/07/2016,192617,INV-0012,5,"1,500.00",Wamo Sports Ltd,CR423559,One Leisure Huntingdon,Equipment,500
http://statistics.data.gov.uk/id/local-authority/12UE,Huntingdonshire District Council,12/07/2016,191388,4001023,5,924,Gladstone Mrm,CR405717,One Leisure Huntingdon,Equipment Hire,507
http://statistics.data.gov.uk/id/local-authority/12UE,Huntingdonshire District Council,07/07/2016,191778,63864431,5,763.46,Phs Group Ltd,CR032018,One Leisure Huntingdon,Equipment Hire,507
http://statistics.data.gov.uk/id/local-authority/12UE,Huntingdonshire District Council,04/07/2016,190734,83222,5,"1,280.70",Servicesport (Uk) Ltd,CR422867,One Leisure Huntingdon,Equipment Maintenance,511
http://statistics.data.gov.uk/id/local-authority/12UE,Huntingdonshire District Council,28/07/2016,192571,84096,5,"1,280.70",Servicesport (Uk) Ltd,CR422867,One Leisure Huntingdon,Equipment Maintenance,511
http://statistics.data.gov.uk/id/local-authority/12UE,Huntingdonshire District Council,07/07/2016,191584,16007012,5,"1,326.85",Technogym Uk Ltd,CR033037,One Leisure Huntingdon,Equipment Maintenance,511
http://statistics.data.gov.uk/id/local-authority/12UE,Huntingdonshire District Council,21/07/2016,192848,12489088110,5,"3,092.26",E-On Energy,CR416430,One Leisure Huntingdon,Gas,421
http://statistics.data.gov.uk/id/local-authority/12UE,Huntingdonshire District Council,27/07/2016,192237,47560,5,324,Technical Surfaces Ltd,CR031941,One Leisure Huntingdon,Grounds Mtce Contractors,351
http://statistics.data.gov.uk/id/local-authority/12UE,Huntingdonshire District Council,27/07/2016,192313,4080459,1,27.6,Espo,CR006566,One Leisure Huntingdon,Materials,550
http://statistics.data.gov.uk/id/local-authority/12UE,Huntingdonshire District Council,12/07/2016,191837,92333647,5,482.77,Speedo International Limited,CR41427,One Leisure Huntingdon,Materials For Resale,570
http://statistics.data.gov.uk/id/local-authority/12UE,Huntingdonshire District Council,27/07/2016,192631,S3083019,5,338.4,First In Service Ltd,CR422285,One Leisure Huntingdon,Plant & Equipment Maintenance,380
http://statistics.data.gov.uk/id/local-authority/12UE,Huntingdonshire District Council,28/07/2016,192131,79417,5,"3,186.00",Jsa Leisure Ltd,CR40187,One Leisure Huntingdon,Plant & Equipment Maintenance,380
http://statistics.data.gov.uk/id/local-authority/12UE,Huntingdonshire District Council,08/07/2016,191329,675,5,379.2,Pool Maintenance Ltd,CR422505,One Leisure Huntingdon,Plant & Equipment Maintenance,380
http://statistics.data.gov.uk/id/local-authority/12UE,Huntingdonshire District Council,08/07/2016,191330,677,5,723.6,Pool Maintenance Ltd,CR422505,One Leisure Huntingdon,Plant & Equipment Maintenance,380
http://statistics.data.gov.uk/id/local-authority/12UE,Huntingdonshire District Council,21/07/2016,192592,16/01/2016,5,90,Phil The Van,CR454014,One Leisure Huntingdon,Printing (External),220
http://statistics.data.gov.uk/id/local-authority/12UE,Huntingdonshire District Council,27/07/2016,192313,4080459,1,78.64,Espo,CR006566,One Leisure Huntingdon,Sports Equipment,524
http://statistics.data.gov.uk/id/local-authority/12UE,Huntingdonshire District Council,12/07/2016,191629,809410,5,145.5,J P Lennard Ltd,CR028595,One Leisure Huntingdon,Sports Equipment,524
http://statistics.data.gov.uk/id/local-authority/12UE,Huntingdonshire District Council,27/07/2016,192313,4080459,1,109.3,Espo,CR006566,One Leisure Huntingdon,Stationery,225
http://statistics.data.gov.uk/id/local-authority/12UE,Huntingdonshire District Council,28/07/2016,192773,10257723,5,702.38,Lucozade Ribena Suntory Ltd,CR422660,One Leisure Huntingdon,Vending Materials,560
http://statistics.data.gov.uk/id/local-authority/12UE,Huntingdonshire District Council,05/07/2016,189784,10218528/900628,5,434.28,Lucozade Ribena Suntory Ltd,CR422660,One Leisure Huntingdon,Vending Materials,560
http://statistics.data.gov.uk/id/local-authority/12UE,Huntingdonshire District Council,28/07/2016,193104,69561,5,316.94,Snackline Direct Ltd,CR478090,One Leisure Huntingdon,Vending Materials,560
http://statistics.data.gov.uk/id/local-authority/12UE,Huntingdonshire District Council,28/07/2016,193253,110638988,5,"2,367.89",Anglian Water,CR000071,One Leisure Huntingdon,Water & Sewerage,432
http://statistics.data.gov.uk/id/local-authority/12UE,Huntingdonshire District Council,04/07/2016,187407,139243,5,60,Lead Forensics,CR423143,One Leisure Ramsey,Advertising/Promoting Services,255
http://statistics.data.gov.uk/id/local-authority/12UE,Huntingdonshire District Council,28/07/2016,191175,1351,5,90,Talk Twenty 1,CR422876,One Leisure Ramsey,Advertising/Promoting Services,255
http://statistics.data.gov.uk/id/local-authority/12UE,Huntingdonshire District Council,28/07/2016,193032,3011409946,5,50.4,Yell Limited,CR416111,One Leisure Ramsey,Advertising/Promoting Services,255
http://statistics.data.gov.uk/id/local-authority/12UE,Huntingdonshire District Council,13/07/2016,190916,30015,5,593.74,Hi-Spec Facilities Services Plc,CR423413,One Leisure Ramsey,Building Cleaning,440
http://statistics.data.gov.uk/id/local-authority/12UE,Huntingdonshire District Council,12/07/2016,190685,14157,5,50.22,Jade Security Services Ltd,CR422256,One Leisure Ramsey,Cash Collection,702
http://statistics.data.gov.uk/id/local-authority/12UE,Huntingdonshire District Council,27/07/2016,192805,14304,5,66.96,Jade Security Services Ltd,CR422256,One Leisure Ramsey,Cash Collection,702
http://statistics.data.gov.uk/id/local-authority/12UE,Huntingdonshire District Council,04/07/2016,191013,159850,5,256.9,Chemaide Limited,CR416597,One Leisure Ramsey,Cleaning Materials,443
http://statistics.data.gov.uk/id/local-authority/12UE,Huntingdonshire District Council,13/07/2016,191291,GD492,5,132,Greenday Energy Ltd,CR422398,One Leisure Ramsey,Consultants,711
http://statistics.data.gov.uk/id/local-authority/12UE,Huntingdonshire District Council,21/07/2016,192866,341225796,5,"2,902.04",Swalec,CR407130,One Leisure Ramsey,Electricity,420
http://statistics.data.gov.uk/id/local-authority/12UE,Huntingdonshire District Council,13/07/2016,192059,502514,5,720,Kidscience Ltd,CR452703,One Leisure Ramsey,Entertainments Inc Cable Tv,744
http://statistics.data.gov.uk/id/local-authority/12UE,Huntingdonshire District Council,25/07/2016,192617,INV-0012,5,750,Wamo Sports Ltd,CR423559,One Leisure Ramsey,Equipment,500
http://statistics.data.gov.uk/id/local-authority/12UE,Huntingdonshire District Council,12/07/2016,191388,4001023,5,924,Gladstone Mrm,CR405717,One Leisure Ramsey,Equipment Hire,507
http://statistics.data.gov.uk/id/local-authority/12UE,Huntingdonshire District Council,04/07/2016,190731,83221,5,691.52,Servicesport (Uk) Ltd,CR422867,One Leisure Ramsey,Equipment Maintenance,511
http://statistics.data.gov.uk/id/local-authority/12UE,Huntingdonshire District Council,28/07/2016,192572,84097,5,691.52,Servicesport (Uk) Ltd,CR422867,One Leisure Ramsey,Equipment Maintenance,511
http://statistics.data.gov.uk/id/local-authority/12UE,Huntingdonshire District Council,21/07/2016,192842,12489088970,5,525.56,E-On Energy,CR416430,One Leisure Ramsey,Gas,421
http://statistics.data.gov.uk/id/local-authority/12UE,Huntingdonshire District Council,21/07/2016,192837,12489090790,5,888.98,E-On Energy,CR416430,One Leisure Ramsey,Gas,421
http://statistics.data.gov.uk/id/local-authority/12UE,Huntingdonshire District Council,27/07/2016,192238,47574,5,324,Technical Surfaces Ltd,CR031941,One Leisure Ramsey,Grounds Mtce Contractors,351
http://statistics.data.gov.uk/id/local-authority/12UE,Huntingdonshire District Council,12/07/2016,192128,PO20147388,5,358.22,Stannah Lifts,CR088939,One Leisure Ramsey,Plant & Equipment Maintenance,380
http://statistics.data.gov.uk/id/local-authority/12UE,Huntingdonshire District Council,21/07/2016,192592,16/01/2016,5,90,Phil The Van,CR454014,One Leisure Ramsey,Printing (External),220
http://statistics.data.gov.uk/id/local-authority/12UE,Huntingdonshire District Council,07/07/2016,191007,807839,5,322.22,J P Lennard Ltd,CR028595,One Leisure Ramsey,Sports Equipment,524
http://statistics.data.gov.uk/id/local-authority/12UE,Huntingdonshire District Council,07/07/2016,191059,55999,5,53.64,Maskearaid Ind Supplies,CR033423,One Leisure Ramsey,Stationery,225
http://statistics.data.gov.uk/id/local-authority/12UE,Huntingdonshire District Council,15/07/2016,192252,158,5,224.51,Study Active Ltd,CR423570,One Leisure Ramsey,Training,130
http://statistics.data.gov.uk/id/local-authority/12UE,Huntingdonshire District Council,15/07/2016,192427,10236473,5,261.48,Lucozade Ribena Suntory Ltd,CR422660,One Leisure Ramsey,Vending Materials,560
http://statistics.data.gov.uk/id/local-authority/12UE,Huntingdonshire District Council,07/07/2016,191947,68140,5,669.73,Snackline Direct Ltd,CR478090,One Leisure Ramsey,Vending Materials,560
http://statistics.data.gov.uk/id/local-authority/12UE,Huntingdonshire District Council,07/07/2016,192127,69285,5,856.87,Snackline Direct Ltd,CR478090,One Leisure Ramsey,Vending Materials,560
http://statistics.data.gov.uk/id/local-authority/12UE,Huntingdonshire District Council,04/07/2016,187407,139243,5,60,Lead Forensics,CR423143,One Leisure Sawtry,Advertising/Promoting Services,255
http://statistics.data.gov.uk/id/local-authority/12UE,Huntingdonshire District Council,28/07/2016,191175,1351,5,90,Talk Twenty 1,CR422876,One Leisure Sawtry,Advertising/Promoting Services,255
http://statistics.data.gov.uk/id/local-authority/12UE,Huntingdonshire District Council,28/07/2016,193032,3011409946,5,114,Yell Limited,CR416111,One Leisure Sawtry,Advertising/Promoting Services,255
http://statistics.data.gov.uk/id/local-authority/12UE,Huntingdonshire District Council,13/07/2016,190916,30015,5,620.72,Hi-Spec Facilities Services Plc,CR423413,One Leisure Sawtry,Building Cleaning,440
http://statistics.data.gov.uk/id/local-authority/12UE,Huntingdonshire District Council,12/07/2016,191006,S3081723,5,273.72,First In Service Ltd,CR422285,One Leisure Sawtry,Building Mtce,303
http://statistics.data.gov.uk/id/local-authority/12UE,Huntingdonshire District Council,12/07/2016,191005,S3081724,5,384.64,First In Service Ltd,CR422285,One Leisure Sawtry,Building Mtce,303
http://statistics.data.gov.uk/id/local-authority/12UE,Huntingdonshire District Council,12/07/2016,190685,14157,5,50.22,Jade Security Services Ltd,CR422256,One Leisure Sawtry,Cash Collection,702
http://statistics.data.gov.uk/id/local-authority/12UE,Huntingdonshire District Council,27/07/2016,192805,14304,5,66.96,Jade Security Services Ltd,CR422256,One Leisure Sawtry,Cash Collection,702
http://statistics.data.gov.uk/id/local-authority/12UE,Huntingdonshire District Council,13/07/2016,191801,38SI3827284,5,589.39,Brenntag Uk Ltd,CR015017,One Leisure Sawtry,Chemicals,551
http://statistics.data.gov.uk/id/local-authority/12UE,Huntingdonshire District Council,13/07/2016,191291,GD492,5,132,Greenday Energy Ltd,CR422398,One Leisure Sawtry,Consultants,711
http://statistics.data.gov.uk/id/local-authority/12UE,Huntingdonshire District Council,21/07/2016,192845,12489088700,5,853.96,E-On Energy,CR416430,One Leisure Sawtry,Electricity,420
http://statistics.data.gov.uk/id/local-authority/12UE,Huntingdonshire District Council,21/07/2016,192869,941240466,5,"3,611.49",Swalec,CR407130,One Leisure Sawtry,Electricity,420
http://statistics.data.gov.uk/id/local-authority/12UE,Huntingdonshire District Council,25/07/2016,192617,INV-0012,5,750,Wamo Sports Ltd,CR423559,One Leisure Sawtry,Equipment,500
http://statistics.data.gov.uk/id/local-authority/12UE,Huntingdonshire District Council,12/07/2016,191388,4001023,5,924,Gladstone Mrm,CR405717,One Leisure Sawtry,Equipment Hire,507
http://statistics.data.gov.uk/id/local-authority/12UE,Huntingdonshire District Council,04/07/2016,190729,83220,5,633.31,Servicesport (Uk) Ltd,CR422867,One Leisure Sawtry,Equipment Maintenance,511
http://statistics.data.gov.uk/id/local-authority/12UE,Huntingdonshire District Council,28/07/2016,192574,84098,5,633.31,Servicesport (Uk) Ltd,CR422867,One Leisure Sawtry,Equipment Maintenance,511
http://statistics.data.gov.uk/id/local-authority/12UE,Huntingdonshire District Council,13/07/2016,191343,123067,5,274.4,New Flame,CR455470,One Leisure Sawtry,Fire & Security,450
http://statistics.data.gov.uk/id/local-authority/12UE,Huntingdonshire District Council,27/07/2016,192703,47632,5,324,Technical Surfaces Ltd,CR031941,One Leisure Sawtry,Grounds Mtce Contractors,351
http://statistics.data.gov.uk/id/local-authority/12UE,Huntingdonshire District Council,21/07/2016,192592,16/01/2016,5,90,Phil The Van,CR454014,One Leisure Sawtry,Printing (External),220
http://statistics.data.gov.uk/id/local-authority/12UE,Huntingdonshire District Council,07/07/2016,192052,16006532,5,"2,592.00",Technogym Uk Ltd,CR033037,One Leisure Sawtry,Software,206
http://statistics.data.gov.uk/id/local-authority/12UE,Huntingdonshire District Council,07/07/2016,191059,55999,5,53.64,Maskearaid Ind Supplies,CR033423,One Leisure Sawtry,Stationery,225
http://statistics.data.gov.uk/id/local-authority/12UE,Huntingdonshire District Council,07/07/2016,192036,68899,5,544.04,Snackline Direct Ltd,CR478090,One Leisure Sawtry,Vending Materials,560
http://statistics.data.gov.uk/id/local-authority/12UE,Huntingdonshire District Council,04/07/2016,187407,139243,5,120,Lead Forensics,CR423143,One Leisure St Ives,Advertising/Promoting Services,255
http://statistics.data.gov.uk/id/local-authority/12UE,Huntingdonshire District Council,28/07/2016,193221,60947339,5,360,Local World Ltd,CR000072,One Leisure St Ives,Advertising/Promoting Services,255
http://statistics.data.gov.uk/id/local-authority/12UE,Huntingdonshire District Council,28/07/2016,193218,2015,5,660,My Friend Directories,CR482680,One Leisure St Ives,Advertising/Promoting Services,255
http://statistics.data.gov.uk/id/local-authority/12UE,Huntingdonshire District Council,04/07/2016,191168,179,5,500,St Ives Quay News,CR422868,One Leisure St Ives,Advertising/Promoting Services,255
http://statistics.data.gov.uk/id/local-authority/12UE,Huntingdonshire District Council,04/07/2016,191170,5308,5,408,Symmetry Dpm Ltd,CR453960,One Leisure St Ives,Advertising/Promoting Services,255
http://statistics.data.gov.uk/id/local-authority/12UE,Huntingdonshire District Council,28/07/2016,191175,1351,5,90,Talk Twenty 1,CR422876,One Leisure St Ives,Advertising/Promoting Services,255
http://statistics.data.gov.uk/id/local-authority/12UE,Huntingdonshire District Council,14/07/2016,192649,210600741,5,189.22,Booker Cash And Carry,CR027611,One Leisure St Ives,Bar Provisions,558
http://statistics.data.gov.uk/id/local-authority/12UE,Huntingdonshire District Council,07/07/2016,191933,2102569813,5,180.13,Booker Cash And Carry,CR027611,One Leisure St Ives,Bar Provisions,558
http://statistics.data.gov.uk/id/local-authority/12UE,Huntingdonshire District Council,07/07/2016,191938,2102570121,5,166.87,Booker Cash And Carry,CR027611,One Leisure St Ives,Bar Provisions,558
http://statistics.data.gov.uk/id/local-authority/12UE,Huntingdonshire District Council,13/07/2016,191939,2102580187,5,124.61,Booker Cash And Carry,CR027611,One Leisure St Ives,Bar Provisions,558
http://statistics.data.gov.uk/id/local-authority/12UE,Huntingdonshire District Council,14/07/2016,192650,2102589147,5,917.66,Booker Cash And Carry,CR027611,One Leisure St Ives,Bar Provisions,558
http://statistics.data.gov.uk/id/local-authority/12UE,Huntingdonshire District Council,11/07/2016,190315,610945,5,"1,412.92",Lacons,CR422174,One Leisure St Ives,Bar Provisions,558
http://statistics.data.gov.uk/id/local-authority/12UE,Huntingdonshire District Council,11/07/2016,190314,611240,5,459.47,Lacons,CR422174,One Leisure St Ives,Bar Provisions,558
http://statistics.data.gov.uk/id/local-authority/12UE,Huntingdonshire District Council,11/07/2016,190540,612122,5,520.87,Lacons,CR422174,One Leisure St Ives,Bar Provisions,558
http://statistics.data.gov.uk/id/local-authority/12UE,Huntingdonshire District Council,11/07/2016,191010,613355,5,476.34,Lacons,CR422174,One Leisure St Ives,Bar Provisions,558
http://statistics.data.gov.uk/id/local-authority/12UE,Huntingdonshire District Council,11/07/2016,191331,614421,5,304.39,Lacons,CR422174,One Leisure St Ives,Bar Provisions,558
http://statistics.data.gov.uk/id/local-authority/12UE,Huntingdonshire District Council,11/07/2016,191635,615460,5,285.48,Lacons,CR422174,One Leisure St Ives,Bar Provisions,558
http://statistics.data.gov.uk/id/local-authority/12UE,Huntingdonshire District Council,11/07/2016,191959,616247,5,"1,436.62",Lacons,CR422174,One Leisure St Ives,Bar Provisions,558
http://statistics.data.gov.uk/id/local-authority/12UE,Huntingdonshire District Council,28/07/2016,192001,616473,5,"1,004.29",Lacons,CR422174,One Leisure St Ives,Bar Provisions,558
http://statistics.data.gov.uk/id/local-authority/12UE,Huntingdonshire District Council,28/07/2016,192780,618589,5,337.61,Lacons,CR422174,One Leisure St Ives,Bar Provisions,558
http://statistics.data.gov.uk/id/local-authority/12UE,Huntingdonshire District Council,28/07/2016,193089,619812,5,374.36,Lacons,CR422174,One Leisure St Ives,Bar Provisions,558
http://statistics.data.gov.uk/id/local-authority/12UE,Huntingdonshire District Council,12/07/2016,191799,144624,5,795.74,Oakham Ales,CR422253,One Leisure St Ives,Bar Provisions,558
http://statistics.data.gov.uk/id/local-authority/12UE,Huntingdonshire District Council,11/07/2016,191045,INV047632,5,276.66,Slush Puppie Ltd,CR455958,One Leisure St Ives,Bar Provisions,558
http://statistics.data.gov.uk/id/local-authority/12UE,Huntingdonshire District Council,28/07/2016,189020,68143,5,109.12,Snackline Direct Ltd,CR478090,One Leisure St Ives,Bar Provisions,558
http://statistics.data.gov.uk/id/local-authority/12UE,Huntingdonshire District Council,11/07/2016,191745,276155,5,131.71,Westminster Foodservice,CR455156,One Leisure St Ives,Bar Provisions,558
http://statistics.data.gov.uk/id/local-authority/12UE,Huntingdonshire District Council,13/07/2016,190916,30015,5,"4,560.91",Hi-Spec Facilities Services Plc,CR423413,One Leisure St Ives,Building Cleaning,440
http://statistics.data.gov.uk/id/local-authority/12UE,Huntingdonshire District Council,28/07/2016,193225,16491,5,276,Bigprinting,CR416383,One Leisure St Ives,Building Mtce,303
http://statistics.data.gov.uk/id/local-authority/12UE,Huntingdonshire District Council,13/07/2016,191326,6213,5,816,Cambridge Flat Roofing,CR479717,One Leisure St Ives,Building Mtce,303
http://statistics.data.gov.uk/id/local-authority/12UE,Huntingdonshire District Council,04/07/2016,190497,160603/001,5,"5,445.60",Jgm Environmental,CR423498,One Leisure St Ives,Building Mtce,303
http://statistics.data.gov.uk/id/local-authority/12UE,Huntingdonshire District Council,04/07/2016,190544,33,5,920,Lui The Plumber,CR422379,One Leisure St Ives,Building Mtce,303
http://statistics.data.gov.uk/id/local-authority/12UE,Huntingdonshire District Council,07/07/2016,190548,9604,5,691.39,Roger Wilson Electronics,CR028041,One Leisure St Ives,Building Mtce,303
http://statistics.data.gov.uk/id/local-authority/12UE,Huntingdonshire District Council,07/07/2016,191686,9612,5,216,Roger Wilson Electronics,CR028041,One Leisure St Ives,Building Mtce,303
http://statistics.data.gov.uk/id/local-authority/12UE,Huntingdonshire District Council,12/07/2016,192053,9619,5,803.98,Roger Wilson Electronics,CR028041,One Leisure St Ives,Building Mtce,303
http://statistics.data.gov.uk/id/local-authority/12UE,Huntingdonshire District Council,28/07/2016,192318,9623,5,751.5,Roger Wilson Electronics,CR028041,One Leisure St Ives,Building Mtce,303
http://statistics.data.gov.uk/id/local-authority/12UE,Huntingdonshire District Council,12/07/2016,190685,14157,5,200.88,Jade Security Services Ltd,CR422256,One Leisure St Ives,Cash Collection,702
http://statistics.data.gov.uk/id/local-authority/12UE,Huntingdonshire District Council,27/07/2016,192805,14304,5,200.88,Jade Security Services Ltd,CR422256,One Leisure St Ives,Cash Collection,702
http://statistics.data.gov.uk/id/local-authority/12UE,Huntingdonshire District Council,14/07/2016,192649,210600741,5,39.79,Booker Cash And Carry,CR027611,One Leisure St Ives,Catering Materials,559
http://statistics.data.gov.uk/id/local-authority/12UE,Huntingdonshire District Council,07/07/2016,191933,2102569813,5,26.98,Booker Cash And Carry,CR027611,One Leisure St Ives,Catering Materials,559
http://statistics.data.gov.uk/id/local-authority/12UE,Huntingdonshire District Council,07/07/2016,191938,2102570121,5,367.14,Booker Cash And Carry,CR027611,One Leisure St Ives,Catering Materials,559
http://statistics.data.gov.uk/id/local-authority/12UE,Huntingdonshire District Council,13/07/2016,191939,2102580187,5,251.83,Booker Cash And Carry,CR027611,One Leisure St Ives,Catering Materials,559
http://statistics.data.gov.uk/id/local-authority/12UE,Huntingdonshire District Council,14/07/2016,192650,2102589147,5,9.5,Booker Cash And Carry,CR027611,One Leisure St Ives,Catering Materials,559
http://statistics.data.gov.uk/id/local-authority/12UE,Huntingdonshire District Council,11/07/2016,190319,INV046496,5,553.32,Slush Puppie Ltd,CR455958,One Leisure St Ives,Catering Materials,559
http://statistics.data.gov.uk/id/local-authority/12UE,Huntingdonshire District Council,28/07/2016,189020,68143,5,58.63,Snackline Direct Ltd,CR478090,One Leisure St Ives,Catering Materials,559
http://statistics.data.gov.uk/id/local-authority/12UE,Huntingdonshire District Council,07/07/2016,191748,342855,5,220.5,South Lincs Food Service,CR033415,One Leisure St Ives,Catering Materials,559
http://statistics.data.gov.uk/id/local-authority/12UE,Huntingdonshire District Council,11/07/2016,191745,276155,5,115.04,Westminster Foodservice,CR455156,One Leisure St Ives,Catering Materials,559
http://statistics.data.gov.uk/id/local-authority/12UE,Huntingdonshire District Council,12/07/2016,191373,4050264,1,234.36,Espo,CR006566,One Leisure St Ives,Cleaning Materials,443
http://statistics.data.gov.uk/id/local-authority/12UE,Huntingdonshire District Council,07/07/2016,191938,2102570121,5,96.84,Booker Cash And Carry,CR027611,One Leisure St Ives,Confectionery,572
http://statistics.data.gov.uk/id/local-authority/12UE,Huntingdonshire District Council,28/07/2016,189020,68143,5,101.36,Snackline Direct Ltd,CR478090,One Leisure St Ives,Confectionery,572
http://statistics.data.gov.uk/id/local-authority/12UE,Huntingdonshire District Council,07/07/2016,191748,342855,5,74.15,South Lincs Food Service,CR033415,One Leisure St Ives,Confectionery,572
http://statistics.data.gov.uk/id/local-authority/12UE,Huntingdonshire District Council,13/07/2016,191291,GD492,5,264,Greenday Energy Ltd,CR422398,One Leisure St Ives,Consultants,711
http://statistics.data.gov.uk/id/local-authority/12UE,Huntingdonshire District Council,28/07/2016,192471,6542529,5,"1,137.48",Certas Energy T/A Pace Fuelcare,CR455975,One Leisure St Ives,Diesel,615
http://statistics.data.gov.uk/id/local-authority/12UE,Huntingdonshire District Council,21/07/2016,192861,65919,5,"7,578.05",E-On Energy,CR416430,One Leisure St Ives,Electricity,420
http://statistics.data.gov.uk/id/local-authority/12UE,Huntingdonshire District Council,28/07/2016,193138,65919,5,"7,578.05",Haven Power Ltd,CR455940,One Leisure St Ives,Electricity,420
http://statistics.data.gov.uk/id/local-authority/12UE,Huntingdonshire District Council,28/07/2016,192864,65922,5,"1,911.25",Haven Power Ltd,CR455940,One Leisure St Ives,Electricity,420
http://statistics.data.gov.uk/id/local-authority/12UE,Huntingdonshire District Council,28/07/2016,193210,CREDIT,5,"-1,911.25",Haven Power Ltd,CR455940,One Leisure St Ives,Electricity,420
http://statistics.data.gov.uk/id/local-authority/12UE,Huntingdonshire District Council,28/07/2016,193208,CREDIT,5,"-7,578.05",Haven Power Ltd,CR455940,One Leisure St Ives,Electricity,420
http://statistics.data.gov.uk/id/local-authority/12UE,Huntingdonshire District Council,04/07/2016,191003,280,5,806.4,2 Ton Productions,CR410213,One Leisure St Ives,Entertainments Inc Cable Tv,744
http://statistics.data.gov.uk/id/local-authority/12UE,Huntingdonshire District Council,28/07/2016,192951,41728,5,300,Dings Entertainment,CR412228,One Leisure St Ives,Entertainments Inc Cable Tv,744
http://statistics.data.gov.uk/id/local-authority/12UE,Huntingdonshire District Council,15/07/2016,192245,INV-0020,5,600,Drk Productions Ltd,CR423569,One Leisure St Ives,Entertainments Inc Cable Tv,744
http://statistics.data.gov.uk/id/local-authority/12UE,Huntingdonshire District Council,15/07/2016,192343,1772A,5,450,Lucas Management,CR422009,One Leisure St Ives,Entertainments Inc Cable Tv,744
http://statistics.data.gov.uk/id/local-authority/12UE,Huntingdonshire District Council,01/07/2016,190336,51372,5,"6,451.20",Off The Kerb Productions,CR423529,One Leisure St Ives,Entertainments Inc Cable Tv,744
http://statistics.data.gov.uk/id/local-authority/12UE,Huntingdonshire District Council,01/07/2016,191953,51372,5,"-6,451.20",Off The Kerb Productions,CR423529,One Leisure St Ives,Entertainments Inc Cable Tv,744
http://statistics.data.gov.uk/id/local-authority/12UE,Huntingdonshire District Council,13/07/2016,191351,10973169,5,309,Body Power Sports Plc,CR423405,One Leisure St Ives,Equipment,500
http://statistics.data.gov.uk/id/local-authority/12UE,Huntingdonshire District Council,27/07/2016,191965,4070700,1,480,Espo,CR006566,One Leisure St Ives,Equipment,500
http://statistics.data.gov.uk/id/local-authority/12UE,Huntingdonshire District Council,07/07/2016,190678,1124875854,5,803.02,Konica Minolta,CR478866,One Leisure St Ives,Equipment,500
http://statistics.data.gov.uk/id/local-authority/12UE,Huntingdonshire District Council,25/07/2016,192617,INV-0012,5,"1,500.00",Wamo Sports Ltd,CR423559,One Leisure St Ives,Equipment,500
http://statistics.data.gov.uk/id/local-authority/12UE,Huntingdonshire District Council,12/07/2016,191388,4001023,5,"2,532.00",Gladstone Mrm,CR405717,One Leisure St Ives,Equipment Hire,507
http://statistics.data.gov.uk/id/local-authority/12UE,Huntingdonshire District Council,07/07/2016,191686,9612,5,66,Roger Wilson Electronics,CR028041,One Leisure St Ives,Equipment Hire,507
http://statistics.data.gov.uk/id/local-authority/12UE,Huntingdonshire District Council,28/07/2016,193064,1160,5,313.75,The Cambridge Chair Cover Company Ltd,CR455385,One Leisure St Ives,Equipment Hire,507
http://statistics.data.gov.uk/id/local-authority/12UE,Huntingdonshire District Council,28/07/2016,193062,1161,5,313.75,The Cambridge Chair Cover Company Ltd,CR455385,One Leisure St Ives,Equipment Hire,507
http://statistics.data.gov.uk/id/local-authority/12UE,Huntingdonshire District Council,01/07/2016,191342,53738,5,944.64,The Linen Hire,CR423546,One Leisure St Ives,Equipment Hire,507
http://statistics.data.gov.uk/id/local-authority/12UE,Huntingdonshire District Council,07/07/2016,191022,GM13766,5,395.54,Garner Medical Ltd,CR003972,One Leisure St Ives,Equipment Maintenance,511
http://statistics.data.gov.uk/id/local-authority/12UE,Huntingdonshire District Council,13/07/2016,192041,INV001542,5,"1,250.00",Lynx Bowling Services,CR455532,One Leisure St Ives,Equipment Maintenance,511
http://statistics.data.gov.uk/id/local-authority/12UE,Huntingdonshire District Council,04/07/2016,190727,83219,5,"2,068.80",Servicesport (Uk) Ltd,CR422867,One Leisure St Ives,Equipment Maintenance,511
http://statistics.data.gov.uk/id/local-authority/12UE,Huntingdonshire District Council,28/07/2016,192575,84099,5,"2,068.80",Servicesport (Uk) Ltd,CR422867,One Leisure St Ives,Equipment Maintenance,511
http://statistics.data.gov.uk/id/local-authority/12UE,Huntingdonshire District Council,28/07/2016,192628,1555,5,"1,102.84",South East Sport Services,CR479901,One Leisure St Ives,Equipment Maintenance,511
http://statistics.data.gov.uk/id/local-authority/12UE,Huntingdonshire District Council,07/07/2016,192038,7080563825,5,293.68,Honeywell Novar Systems,CR406826,One Leisure St Ives,Fire & Security,450
http://statistics.data.gov.uk/id/local-authority/12UE,Huntingdonshire District Council,28/07/2016,192070,7080564328,5,610.37,Honeywell Novar Systems,CR406826,One Leisure St Ives,Fire & Security,450
http://statistics.data.gov.uk/id/local-authority/12UE,Huntingdonshire District Council,21/07/2016,192840,12489089510,5,322.14,E-On Energy,CR416430,One Leisure St Ives,Gas,421
http://statistics.data.gov.uk/id/local-authority/12UE,Huntingdonshire District Council,21/07/2016,192834,12489090950,5,"3,581.33",E-On Energy,CR416430,One Leisure St Ives,Gas,421
http://statistics.data.gov.uk/id/local-authority/12UE,Huntingdonshire District Council,11/07/2016,191010,613355,5,37.63,Lacons,CR422174,One Leisure St Ives,Gas Cylinders (Incl. Bars),567
http://statistics.data.gov.uk/id/local-authority/12UE,Huntingdonshire District Council,11/07/2016,191635,615460,5,18.82,Lacons,CR422174,One Leisure St Ives,Gas Cylinders (Incl. Bars),567
http://statistics.data.gov.uk/id/local-authority/12UE,Huntingdonshire District Council,28/07/2016,192780,618589,5,18.81,Lacons,CR422174,One Leisure St Ives,Gas Cylinders (Incl. Bars),567
http://statistics.data.gov.uk/id/local-authority/12UE,Huntingdonshire District Council,27/07/2016,192236,47559,5,420,Technical Surfaces Ltd,CR031941,One Leisure St Ives,Grounds Mtce Contractors,351
http://statistics.data.gov.uk/id/local-authority/12UE,Huntingdonshire District Council,12/07/2016,192060,149216,5,270,Cambridgeshire Chamber Of Commerce,CR411674,One Leisure St Ives,Licences,730
http://statistics.data.gov.uk/id/local-authority/12UE,Huntingdonshire District Council,14/07/2016,192649,210600741,5,60.86,Booker Cash And Carry,CR027611,One Leisure St Ives,Materials,550
http://statistics.data.gov.uk/id/local-authority/12UE,Huntingdonshire District Council,07/07/2016,191933,2102569813,5,148.67,Booker Cash And Carry,CR027611,One Leisure St Ives,Materials,550
http://statistics.data.gov.uk/id/local-authority/12UE,Huntingdonshire District Council,07/07/2016,191938,2102570121,5,45.46,Booker Cash And Carry,CR027611,One Leisure St Ives,Materials,550
http://statistics.data.gov.uk/id/local-authority/12UE,Huntingdonshire District Council,13/07/2016,191939,2102580187,5,118.74,Booker Cash And Carry,CR027611,One Leisure St Ives,Materials,550
http://statistics.data.gov.uk/id/local-authority/12UE,Huntingdonshire District Council,14/07/2016,192650,2102589147,5,40.05,Booker Cash And Carry,CR027611,One Leisure St Ives,Materials,550
http://statistics.data.gov.uk/id/local-authority/12UE,Huntingdonshire District Council,12/07/2016,191373,4050264,1,80.88,Espo,CR006566,One Leisure St Ives,Materials,550
http://statistics.data.gov.uk/id/local-authority/12UE,Huntingdonshire District Council,11/07/2016,190319,INV046496,5,115.62,Slush Puppie Ltd,CR455958,One Leisure St Ives,Materials,550
http://statistics.data.gov.uk/id/local-authority/12UE,Huntingdonshire District Council,07/07/2016,191748,342855,5,38.92,South Lincs Food Service,CR033415,One Leisure St Ives,Materials,550
http://statistics.data.gov.uk/id/local-authority/12UE,Huntingdonshire District Council,28/07/2016,192935,8294,5,250,Starlite Roadshow,CR024127,One Leisure St Ives,Materials,550
http://statistics.data.gov.uk/id/local-authority/12UE,Huntingdonshire District Council,11/07/2016,191745,276155,5,21.6,Westminster Foodservice,CR455156,One Leisure St Ives,Materials,550
http://statistics.data.gov.uk/id/local-authority/12UE,Huntingdonshire District Council,12/07/2016,191804,3080805,5,"1,444.80",First In Service Ltd,CR422285,One Leisure St Ives,Plant & Equipment Maintenance,380
http://statistics.data.gov.uk/id/local-authority/12UE,Huntingdonshire District Council,12/07/2016,191691,S3081758,5,741.6,First In Service Ltd,CR422285,One Leisure St Ives,Plant & Equipment Maintenance,380
http://statistics.data.gov.uk/id/local-authority/12UE,Huntingdonshire District Council,27/07/2016,192003,S3082787,5,310.19,First In Service Ltd,CR422285,One Leisure St Ives,Plant & Equipment Maintenance,380
http://statistics.data.gov.uk/id/local-authority/12UE,Huntingdonshire District Council,13/07/2016,192041,INV001542,5,513,Lynx Bowling Services,CR455532,One Leisure St Ives,Plant & Equipment Maintenance,380
http://statistics.data.gov.uk/id/local-authority/12UE,Huntingdonshire District Council,12/07/2016,190889,IN16PS16003195,5,721.78,Whistl Uk Ltd,CR479965,One Leisure St Ives,Postage,231
http://statistics.data.gov.uk/id/local-authority/12UE,Huntingdonshire District Council,28/07/2016,193223,16422,5,513.6,Bigprinting,CR416383,One Leisure St Ives,Printing (External),220
http://statistics.data.gov.uk/id/local-authority/12UE,Huntingdonshire District Council,28/07/2016,193224,16423,5,664.8,Bigprinting,CR416383,One Leisure St Ives,Printing (External),220
http://statistics.data.gov.uk/id/local-authority/12UE,Huntingdonshire District Council,21/07/2016,192592,16/01/2016,5,90,Phil The Van,CR454014,One Leisure St Ives,Printing (External),220
http://statistics.data.gov.uk/id/local-authority/12UE,Huntingdonshire District Council,07/07/2016,191018,16006531,5,"2,592.00",Technogym Uk Ltd,CR033037,One Leisure St Ives,Software,206
http://statistics.data.gov.uk/id/local-authority/12UE,Huntingdonshire District Council,12/07/2016,191629,809410,5,145.5,J P Lennard Ltd,CR028595,One Leisure St Ives,Sports Equipment,524
http://statistics.data.gov.uk/id/local-authority/12UE,Huntingdonshire District Council,12/07/2016,191373,4050264,1,102.74,Espo,CR006566,One Leisure St Ives,Stationery,225
http://statistics.data.gov.uk/id/local-authority/12UE,Huntingdonshire District Council,07/07/2016,191059,55999,5,322.92,Maskearaid Ind Supplies,CR033423,One Leisure St Ives,Stationery,225
http://statistics.data.gov.uk/id/local-authority/12UE,Huntingdonshire District Council,13/07/2016,191582,INV-001700,5,468,Magenta Coaching Solutions,CR480942,One Leisure St Ives,Training,130
http://statistics.data.gov.uk/id/local-authority/12UE,Huntingdonshire District Council,07/07/2016,192024,69572,5,296.05,Snackline Direct Ltd,CR478090,One Leisure St Ives,Vending Materials,560
http://statistics.data.gov.uk/id/local-authority/12UE,Huntingdonshire District Council,13/07/2016,192008,SBO1042448,5,849.67,Veolia Es Uk Ltd,CR478889,One Leisure St Ives,Waste Disposal,763
http://statistics.data.gov.uk/id/local-authority/12UE,Huntingdonshire District Council,14/07/2016,192243,STI000443,5,"1,978.77",St Ivo School,CR408986,One Leisure St Ives,Water & Sewerage,432
http://statistics.data.gov.uk/id/local-authority/12UE,Huntingdonshire District Council,04/07/2016,187407,139243,5,120,Lead Forensics,CR423143,One Leisure St Neots,Advertising/Promoting Services,255
http://statistics.data.gov.uk/id/local-authority/12UE,Huntingdonshire District Council,28/07/2016,191175,1351,5,90,Talk Twenty 1,CR422876,One Leisure St Neots,Advertising/Promoting Services,255
http://statistics.data.gov.uk/id/local-authority/12UE,Huntingdonshire District Council,28/07/2016,193032,3011409946,5,114,Yell Limited,CR416111,One Leisure St Neots,Advertising/Promoting Services,255
http://statistics.data.gov.uk/id/local-authority/12UE,Huntingdonshire District Council,13/07/2016,190916,30015,5,"2,051.06",Hi-Spec Facilities Services Plc,CR423413,One Leisure St Neots,Building Cleaning,440
http://statistics.data.gov.uk/id/local-authority/12UE,Huntingdonshire District Council,04/07/2016,190919,S3081115,5,616.8,First In Service Ltd,CR422285,One Leisure St Neots,Building Mtce,303
http://statistics.data.gov.uk/id/local-authority/12UE,Huntingdonshire District Council,28/07/2016,193236,612007,5,898.32,N & C Glass Ltd,CR415450,One Leisure St Neots,Building Mtce,303
http://statistics.data.gov.uk/id/local-authority/12UE,Huntingdonshire District Council,12/07/2016,191365,9609,5,270.92,Roger Wilson Electronics,CR028041,One Leisure St Neots,Building Mtce,303
http://statistics.data.gov.uk/id/local-authority/12UE,Huntingdonshire District Council,28/07/2016,192046,9621,5,370.5,Roger Wilson Electronics,CR028041,One Leisure St Neots,Building Mtce,303
http://statistics.data.gov.uk/id/local-authority/12UE,Huntingdonshire District Council,12/07/2016,190685,14157,5,368.28,Jade Security Services Ltd,CR422256,One Leisure St Neots,Cash Collection,702
http://statistics.data.gov.uk/id/local-authority/12UE,Huntingdonshire District Council,27/07/2016,192805,14304,5,435.24,Jade Security Services Ltd,CR422256,One Leisure St Neots,Cash Collection,702
http://statistics.data.gov.uk/id/local-authority/12UE,Huntingdonshire District Council,13/07/2016,191800,38SI3827285,5,743.36,Brenntag Uk Ltd,CR015017,One Leisure St Neots,Chemicals,551
http://statistics.data.gov.uk/id/local-authority/12UE,Huntingdonshire District Council,12/07/2016,191378,56055,5,474.01,Maskearaid Ind Supplies,CR033423,One Leisure St Neots,Cleaning Materials,443
http://statistics.data.gov.uk/id/local-authority/12UE,Huntingdonshire District Council,28/07/2016,192863,65914,5,"9,308.16",Haven Power Ltd,CR455940,One Leisure St Neots,Electricity,420
http://statistics.data.gov.uk/id/local-authority/12UE,Huntingdonshire District Council,28/07/2016,193213,CREDIT,5,"-9,308.16",Haven Power Ltd,CR455940,One Leisure St Neots,Electricity,420
http://statistics.data.gov.uk/id/local-authority/12UE,Huntingdonshire District Council,25/07/2016,192617,INV-0012,5,"1,500.00",Wamo Sports Ltd,CR423559,One Leisure St Neots,Equipment,500
http://statistics.data.gov.uk/id/local-authority/12UE,Huntingdonshire District Council,12/07/2016,191388,4001023,5,924,Gladstone Mrm,CR405717,One Leisure St Neots,Equipment Hire,507
http://statistics.data.gov.uk/id/local-authority/12UE,Huntingdonshire District Council,07/07/2016,191055,63869916,5,675.77,Phs Group Ltd,CR032018,One Leisure St Neots,Equipment Hire,507
http://statistics.data.gov.uk/id/local-authority/12UE,Huntingdonshire District Council,04/07/2016,190733,83218,5,"2,206.63",Servicesport (Uk) Ltd,CR422867,One Leisure St Neots,Equipment Maintenance,511
http://statistics.data.gov.uk/id/local-authority/12UE,Huntingdonshire District Council,28/07/2016,192576,84100,5,"2,206.63",Servicesport (Uk) Ltd,CR422867,One Leisure St Neots,Equipment Maintenance,511
http://statistics.data.gov.uk/id/local-authority/12UE,Huntingdonshire District Council,07/07/2016,191072,5840891,5,"1,056.04",Chubb Fire And Security Ltd,CR478924,One Leisure St Neots,Fire & Security,450
http://statistics.data.gov.uk/id/local-authority/12UE,Huntingdonshire District Council,08/07/2016,191441,90116821,5,730.8,G4s Secure Solutions (Uk) Ltd,CR454030,One Leisure St Neots,Fire & Security,450
http://statistics.data.gov.uk/id/local-authority/12UE,Huntingdonshire District Council,08/07/2016,191440,90117275,5,730.8,G4s Secure Solutions (Uk) Ltd,CR454030,One Leisure St Neots,Fire & Security,450
http://statistics.data.gov.uk/id/local-authority/12UE,Huntingdonshire District Council,12/07/2016,191833,4065735,1,462,Espo,CR006566,One Leisure St Neots,Furniture,200
http://statistics.data.gov.uk/id/local-authority/12UE,Huntingdonshire District Council,21/07/2016,192849,12489088680,5,"2,781.01",E-On Energy,CR416430,One Leisure St Neots,Gas,421
http://statistics.data.gov.uk/id/local-authority/12UE,Huntingdonshire District Council,27/07/2016,192704,47631,5,648,Technical Surfaces Ltd,CR031941,One Leisure St Neots,Grounds Mtce Contractors,351
http://statistics.data.gov.uk/id/local-authority/12UE,Huntingdonshire District Council,12/07/2016,191442,1138939,5,485.64,Cmuk Visual Safety Ltd,CR405024,One Leisure St Neots,Materials,550
http://statistics.data.gov.uk/id/local-authority/12UE,Huntingdonshire District Council,12/07/2016,191173,808169,5,78.72,J P Lennard Ltd,CR028595,One Leisure St Neots,Materials For Resale,570
http://statistics.data.gov.uk/id/local-authority/12UE,Huntingdonshire District Council,28/07/2016,192046,9621,5,53.03,Roger Wilson Electronics,CR028041,One Leisure St Neots,Materials For Resale,570
http://statistics.data.gov.uk/id/local-authority/12UE,Huntingdonshire District Council,07/07/2016,191012,92317884,5,"1,168.41",Speedo International Limited,CR41427,One Leisure St Neots,Materials For Resale,570
http://statistics.data.gov.uk/id/local-authority/12UE,Huntingdonshire District Council,13/07/2016,191056,1265,5,408,Flexerefrigeration Ltd,CR422336,One Leisure St Neots,Plant & Equipment Maintenance,380
http://statistics.data.gov.uk/id/local-authority/12UE,Huntingdonshire District Council,21/07/2016,192592,16/01/2016,5,90,Phil The Van,CR454014,One Leisure St Neots,Printing (External),220
http://statistics.data.gov.uk/id/local-authority/12UE,Huntingdonshire District Council,12/07/2016,191173,808169,5,246.02,J P Lennard Ltd,CR028595,One Leisure St Neots,Sports Equipment,524
http://statistics.data.gov.uk/id/local-authority/12UE,Huntingdonshire District Council,07/07/2016,191059,55999,5,502.8,Maskearaid Ind Supplies,CR033423,One Leisure St Neots,Stationery,225
http://statistics.data.gov.uk/id/local-authority/12UE,Huntingdonshire District Council,05/07/2016,190317,10226503,5,321.78,Lucozade Ribena Suntory Ltd,CR422660,One Leisure St Neots,Vending Materials,560
http://statistics.data.gov.uk/id/local-authority/12UE,Huntingdonshire District Council,07/07/2016,191075,69577,5,356.95,Snackline Direct Ltd,CR478090,One Leisure St Neots,Vending Materials,560
http://statistics.data.gov.uk/id/local-authority/12UE,Huntingdonshire District Council,27/07/2016,192007,SBO1042450,5,320.35,Veolia Es Uk Ltd,CR478889,One Leisure St Neots,Waste Disposal,763
http://statistics.data.gov.uk/id/local-authority/12UE,Huntingdonshire District Council,28/07/2016,192853,124032665,5,"1,003.95",Anglian Water,CR000071,One Leisure St Neots,Water & Sewerage,432
http://statistics.data.gov.uk/id/local-authority/12UE,Huntingdonshire District Council,14/07/2016,192069,22439,5,254.74,B. S. Graves Electrical Ltd,CR000363,Parks & Open Spaces,Building Mtce,303
http://statistics.data.gov.uk/id/local-authority/12UE,Huntingdonshire District Council,14/07/2016,192019,121573804,5,"1,263.93",Swalec,CR407130,Parks & Open Spaces,Electricity,420
http://statistics.data.gov.uk/id/local-authority/12UE,Huntingdonshire District Council,21/07/2016,192825,16-875-MR,5,403.62,Gb Sport & Leisure Uk Ltd,CR482429,Parks & Open Spaces,Playground Equipment,360
http://statistics.data.gov.uk/id/local-authority/12UE,Huntingdonshire District Council,21/07/2016,192893,10224337,5,935,Madingley Mulch,CR409002,Parks & Open Spaces,Playground Equipment,360
http://statistics.data.gov.uk/id/local-authority/12UE,Huntingdonshire District Council,21/07/2016,192894,10224338,5,825,Madingley Mulch,CR409002,Parks & Open Spaces,Playground Equipment,360
http://statistics.data.gov.uk/id/local-authority/12UE,Huntingdonshire District Council,07/07/2016,191043,OP/I 106349,5,318.6,Sutcliffe Play,CR478132,Parks & Open Spaces,Playground Equipment,360
http://statistics.data.gov.uk/id/local-authority/12UE,Huntingdonshire District Council,13/07/2016,190916,30015,5,"3,778.27",Hi-Spec Facilities Services Plc,CR423413,Pathfinder House Site,Building Cleaning,440
http://statistics.data.gov.uk/id/local-authority/12UE,Huntingdonshire District Council,12/07/2016,191142,56015,5,732.92,Maskearaid Ind Supplies,CR033423,Pathfinder House Site,Building Cleaning,440
http://statistics.data.gov.uk/id/local-authority/12UE,Huntingdonshire District Council,04/07/2016,190918,20128,5,335.86,Bh Doors & Engineering Ltd,CR455707,Pathfinder House Site,Building Mtce,303
http://statistics.data.gov.uk/id/local-authority/12UE,Huntingdonshire District Council,12/07/2016,190915,S3081703,5,669.6,First In Service Ltd,CR422285,Pathfinder House Site,Building Mtce,303
http://statistics.data.gov.uk/id/local-authority/12UE,Huntingdonshire District Council,12/07/2016,191641,38122047,5,302.65,Kone Lifts Ltd,CR000483,Pathfinder House Site,Building Mtce,303
http://statistics.data.gov.uk/id/local-authority/12UE,Huntingdonshire District Council,18/07/2016,192464,1020441,5,988.33,Brookes,CR422866,Pathfinder House Site,Catering,710
http://statistics.data.gov.uk/id/local-authority/12UE,Huntingdonshire District Council,28/07/2016,192865,65912,5,"9,330.56",Haven Power Ltd,CR455940,Pathfinder House Site,Electricity,420
http://statistics.data.gov.uk/id/local-authority/12UE,Huntingdonshire District Council,28/07/2016,193209,CREDIT,5,"-9,330.56",Haven Power Ltd,CR455940,Pathfinder House Site,Electricity,420
http://statistics.data.gov.uk/id/local-authority/12UE,Huntingdonshire District Council,21/07/2016,192835,13313569100,5,623.82,E-On Energy,CR416430,Pathfinder House Site,Gas,421
http://statistics.data.gov.uk/id/local-authority/12UE,Huntingdonshire District Council,18/07/2016,192229,30460,5,"1,068.00",P A Collacott & Company,CR482300,Pathfinder House Site,Plant & Equipment Maintenance,380
http://statistics.data.gov.uk/id/local-authority/12UE,Huntingdonshire District Council,27/07/2016,192640,07-Jun-16,5,"2,640.00",Tree Officer Outsourcing Uk Ltd,CR423131,Planning M U'S,Hired Staff,100
http://statistics.data.gov.uk/id/local-authority/12UE,Huntingdonshire District Council,13/07/2016,192259,50065021,5,"4,503.60",Haymarket Media Group Ltd,CR479500,Planning M U'S,Recruitment Costs,120
http://statistics.data.gov.uk/id/local-authority/12UE,Huntingdonshire District Council,12/07/2016,191608,DHC045,5,"2,784.00",Cfl Estate Services,CR455208,Property Development And Mgt,Consultants,711
http://statistics.data.gov.uk/id/local-authority/12UE,Huntingdonshire District Council,12/07/2016,191603,HDC046,5,"3,377.55",Cfl Estate Services,CR455208,Property Development And Mgt,Consultants,711
http://statistics.data.gov.uk/id/local-authority/12UE,Huntingdonshire District Council,12/07/2016,191604,HDC047,5,"2,550.00",Cfl Estate Services,CR455208,Property Development And Mgt,Consultants,711
http://statistics.data.gov.uk/id/local-authority/12UE,Huntingdonshire District Council,13/07/2016,191993,63348,5,354,The Consultation Institute,CR482412,Ramsey Neighbourhood,Training,130
http://statistics.data.gov.uk/id/local-authority/12UE,Huntingdonshire District Council,07/07/2016,191424,IN0522940,5,"1,296.61",Staffline Group,CR416827,Recycling,Hired Staff,100
http://statistics.data.gov.uk/id/local-authority/12UE,Huntingdonshire District Council,14/07/2016,192443,IN0524687,5,"1,307.08",Staffline Group,CR416827,Recycling,Hired Staff,100
http://statistics.data.gov.uk/id/local-authority/12UE,Huntingdonshire District Council,07/07/2016,191651,SINV-096777,5,"3,045.12",Gelpack Excelsior Limited,CR002966,Recycling,Refuse Sacks,552
http://statistics.data.gov.uk/id/local-authority/12UE,Huntingdonshire District Council,21/07/2016,192796,89287,5,798.76,Bandvulc Truck Tyres,CR406810,Recycling,Tyres,630
http://statistics.data.gov.uk/id/local-authority/12UE,Huntingdonshire District Council,27/07/2016,192797,90398,5,849.94,Bandvulc Truck Tyres,CR406810,Recycling,Tyres,630
http://statistics.data.gov.uk/id/local-authority/12UE,Huntingdonshire District Council,07/07/2016,191662,266197I,5,293.95,A C Commercials,CR000141,Recycling,Vehicle Oil & Lubricants,626
http://statistics.data.gov.uk/id/local-authority/12UE,Huntingdonshire District Council,21/07/2016,192781,266488I,5,919.8,A C Commercials,CR000141,Recycling,Vehicle Oil & Lubricants,626
http://statistics.data.gov.uk/id/local-authority/12UE,Huntingdonshire District Council,12/07/2016,192117,187488,5,126,Barton Petroleum,CR409205,Recycling,Vehicle Oil & Lubricants,626
http://statistics.data.gov.uk/id/local-authority/12UE,Huntingdonshire District Council,14/07/2016,192447,96327821,5,304.64,Terberg Matec Uk Ltd,CR402183,Recycling,Vehicle Parts & Fittings,625
http://statistics.data.gov.uk/id/local-authority/12UE,Huntingdonshire District Council,27/07/2016,192450,96328725,5,271.8,Terberg Matec Uk Ltd,CR402183,Recycling,Vehicle Parts & Fittings,625
http://statistics.data.gov.uk/id/local-authority/12UE,Huntingdonshire District Council,27/07/2016,192448,96328798,5,394.84,Terberg Matec Uk Ltd,CR402183,Recycling,Vehicle Parts & Fittings,625
http://statistics.data.gov.uk/id/local-authority/12UE,Huntingdonshire District Council,13/07/2016,192112,9601,5,345.6,G&C Coachworks Ltd,CR455755,Recycling,Vehicle Refurbishment,624
http://statistics.data.gov.uk/id/local-authority/12UE,Huntingdonshire District Council,28/07/2016,192432,SI29559,5,"16,074.72",Ssi Schaefer Ltd,CR407190,Recycling Equipment Capital,Recycling Bins,525
http://statistics.data.gov.uk/id/local-authority/12UE,Huntingdonshire District Council,07/07/2016,191624,3180849,5,"1,235.16",Venn Group Recruitment,CR415403,Rent Allowance National Scheme,Hired Staff,100
http://statistics.data.gov.uk/id/local-authority/12UE,Huntingdonshire District Council,13/07/2016,190526,661512,5,146.4,Callcredit Ltd,CR455548,Revenue Services Mus,Enquiries,723
http://statistics.data.gov.uk/id/local-authority/12UE,Huntingdonshire District Council,13/07/2016,192165,665106,5,157.2,Callcredit Ltd,CR455548,Revenue Services Mus,Enquiries,723
http://statistics.data.gov.uk/id/local-authority/12UE,Huntingdonshire District Council,12/07/2016,192015,76726,5,"3,596.40",Gladstone Mrm,CR405717,Software Capital,Consultants,711
http://statistics.data.gov.uk/id/local-authority/12UE,Huntingdonshire District Council,07/07/2016,191428,IN0522943,5,"1,178.84",Staffline Group,CR416827,Street Cleaning,Hired Staff,100
http://statistics.data.gov.uk/id/local-authority/12UE,Huntingdonshire District Council,12/07/2016,191813,IN0524690,5,903.98,Staffline Group,CR416827,Street Cleaning,Hired Staff,100
http://statistics.data.gov.uk/id/local-authority/12UE,Huntingdonshire District Council,12/07/2016,191411,60217466,5,738.9,Aebi Schmidt,CR025706,Street Cleaning,Insurance Excess,797
http://statistics.data.gov.uk/id/local-authority/12UE,Huntingdonshire District Council,13/07/2016,191413,350783,5,"1,881.72",Smi Group,CR423139,Street Cleaning,Protective Clothing & Uniforms,163
http://statistics.data.gov.uk/id/local-authority/12UE,Huntingdonshire District Council,13/07/2016,191412,351268,5,621.42,Smi Group,CR423139,Street Cleaning,Protective Clothing & Uniforms,163
http://statistics.data.gov.uk/id/local-authority/12UE,Huntingdonshire District Council,13/07/2016,191812,352826,5,637.74,Smi Group,CR423139,Street Cleaning,Protective Clothing & Uniforms,163
http://statistics.data.gov.uk/id/local-authority/12UE,Huntingdonshire District Council,27/07/2016,192437,355153,5,333.6,Smi Group,CR423139,Street Cleaning,Protective Clothing & Uniforms,163
http://statistics.data.gov.uk/id/local-authority/12UE,Huntingdonshire District Council,27/07/2016,192794,10092,5,270,Ian'S Tyre & Exhaust Centre,CR405836,Street Cleaning,Tyres,630
http://statistics.data.gov.uk/id/local-authority/12UE,Huntingdonshire District Council,25/07/2016,192808,160/29166,5,714,Gullivers Truck Hire Ltd,CR477663,Street Cleaning,Vehicle Hire,607
http://statistics.data.gov.uk/id/local-authority/12UE,Huntingdonshire District Council,07/07/2016,191692,1606/18925,5,714,Gullivers Truck Hire Ltd,CR477663,Street Cleaning,Vehicle Hire,607
http://statistics.data.gov.uk/id/local-authority/12UE,Huntingdonshire District Council,13/07/2016,191698,1606/21460,5,714,Gullivers Truck Hire Ltd,CR477663,Street Cleaning,Vehicle Hire,607
http://statistics.data.gov.uk/id/local-authority/12UE,Huntingdonshire District Council,13/07/2016,192089,1606/23985,5,714,Gullivers Truck Hire Ltd,CR477663,Street Cleaning,Vehicle Hire,607
http://statistics.data.gov.uk/id/local-authority/12UE,Huntingdonshire District Council,12/07/2016,191404,10702378,5,"1,023.00",Shb Hire Ltd,CR416566,Street Cleaning,Vehicle Hire,607
http://statistics.data.gov.uk/id/local-authority/12UE,Huntingdonshire District Council,12/07/2016,191811,10706110,5,375.12,Shb Hire Ltd,CR416566,Street Cleaning,Vehicle Hire,607
http://statistics.data.gov.uk/id/local-authority/12UE,Huntingdonshire District Council,07/07/2016,191662,266197I,5,209.98,A C Commercials,CR000141,Street Cleaning,Vehicle Oil & Lubricants,626
http://statistics.data.gov.uk/id/local-authority/12UE,Huntingdonshire District Council,21/07/2016,192781,266488I,5,657,A C Commercials,CR000141,Street Cleaning,Vehicle Oil & Lubricants,626
http://statistics.data.gov.uk/id/local-authority/12UE,Huntingdonshire District Council,12/07/2016,192124,60217498,5,673.44,Aebi Schmidt,CR025706,Street Cleaning,Vehicle Parts & Fittings,625
http://statistics.data.gov.uk/id/local-authority/12UE,Huntingdonshire District Council,21/07/2016,191640,84191,5,302.4,Frank Ratcliffe & Son,CR007546,Street Cleaning,Vehicle Parts & Fittings,625
http://statistics.data.gov.uk/id/local-authority/12UE,Huntingdonshire District Council,21/07/2016,192916,84199,5,263.4,Frank Ratcliffe & Son,CR007546,Street Cleaning,Vehicle Parts & Fittings,625
http://statistics.data.gov.uk/id/local-authority/12UE,Huntingdonshire District Council,21/07/2016,548484,601472,5,297.35,Johnston Engineering Ltd,CR029831,Street Cleaning,Vehicle Parts & Fittings,625
http://statistics.data.gov.uk/id/local-authority/12UE,Huntingdonshire District Council,21/07/2016,540434,6014712,5,-297.35,Johnston Engineering Ltd,CR029831,Street Cleaning,Vehicle Parts & Fittings,625
http://statistics.data.gov.uk/id/local-authority/12UE,Huntingdonshire District Council,14/07/2016,191461,61396649,5,307.28,Johnston Engineering Ltd,CR029831,Street Cleaning,Vehicle Parts & Fittings,625
http://statistics.data.gov.uk/id/local-authority/12UE,Huntingdonshire District Council,07/07/2016,191128,65241656,5,564,Johnston Engineering Ltd,CR029831,Street Cleaning,Vehicle Parts & Fittings,625
http://statistics.data.gov.uk/id/local-authority/12UE,Huntingdonshire District Council,13/07/2016,190715,25/06/2016,5,"1,000.00",R M Home Maintenance,CR455901,Street Cleaning,Waste Disposal,763
http://statistics.data.gov.uk/id/local-authority/12UE,Huntingdonshire District Council,12/07/2016,192101,10681413,5,"3,288.01",Cambridgeshire County Council,CR006678,Trade Refuse,Waste Disposal,763
http://statistics.data.gov.uk/id/local-authority/12UE,Huntingdonshire District Council,28/07/2016,193031,756,5,"12,500.00",Hact,CR455657,Transportation Mgt,Contribution (Paid Out),810
http://statistics.data.gov.uk/id/local-authority/12UE,Huntingdonshire District Council,21/07/2016,192263,41310,5,270,Dal-Rod (Camridgeshire),CR413675,Watercourses,Sitework,359
http://statistics.data.gov.uk/id/local-authority/12UE,Huntingdonshire District Council,21/07/2016,192263,41310,5,81.6,Dal-Rod (Camridgeshire),CR413675,Watercourses,Sitework,359
